Workbook

Sheet Intro
B2: Ekonomická analýza malé větrné elektrárny
B37: Základní instrukce
D44: Buňka pro zadávání
D45: Buňka automaticky vypočítá hodnotu

Sheet Input Sheet
B3: Název projektu: | C3: Malá větrná elektrárna u RD, Lhota
B5: Místo pro výstavbu MVtE
C6: Weibull - konstanta k | D6: 1.93 | E6: -- | F6: (dostupné z http://vitr.ufa.cas.cz/male-vte/)
C7: Výška měření rychlosti větru | D7: 5.5 | E7: m | F7: (10m pro data z http://vitr.ufa.cas.cz/male-vte/)
C8: Výška rotoru MVtE | D8: 10 | E8: m
C9: Druh povrchu - konstanta | D9: 0.21 | E9: --
C10: Průměrná rychlost větru: | D10: 15 | E10: m/s | F10: (dostupné z http://vitr.ufa.cas.cz/male-vte nebo tlačítko)
C11: Nadmořská výška základů MVtE | D11: 355 | E11: m
C12: Hustota vzduchu | D12: =1.225*(1-(D11+D8)/44308)^4.2553 -> 1.182630735 | E12: kg/m3
B14: Výběr MVtE
C16: 6 | D16: AP1200 | E16: AP2400 | F16: AP7 | G16: SKYSTREAM 3.7 | H16: HY-3000L 5BLADE | I16: HY-1500L 5BLADE
C17: Vlastnosti MVtE
C18: Jmenovitý výkon | D18: 1200 | E18: 2400 | F18: 7000 | G18: 2400 | H18: 3000 | I18: 1500 | K18: W
C19: Jmenovitá rychlost větru | D19: 10 | E19: 11 | F19: 12 | G19: 13 | H19: 12.5 | I19: 12 | K19: m/s
C20: Výstupní napětí | D20: 48 | E20: 230 | F20: 230 | G20: 240 | H20: 220 | I20: 110/220 | K20: V
C21: Rozběhová rychlost | D21: 3 | E21: 3 | F21: 3 | G21: 3.5 | H21: 2.5 | I21: 2.5 | K21: m/s
C22: Maximální rychlost větru | D22: 30 | E22: 30 | F22: 30 | G22: 25 | H22: 25 | I22: 25 | K22: m/s
C23: Průměr rotoru | D23: 3.2 | E23: 3.3 | F23: 6.5 | G23: 3.7 | H23: 3.05 | I23: 2.05 | K23: m
C24: Efektivita | D24: =D18/WindPower(D19-0.000000001, D21, D22, D19, D18, D23, 1, $D$12) -> 0.2524599355 | E24: 0.3567109852 | F24: 0.2065564524 | G24: 0.1719051605 | H24: 0.3557154385 | I24: 0.4449907427
C25: Každoroční opotřebení | D25: 0.005 | E25: 0.005 | F25: 0.005 | G25: 0.005 | H25: 0.005 | I25: 0.005
C26: Životnost | D26: 30 | E26: 30 | F26: 30 | G26: 30 | H26: 30 | I26: 30 | K26: years
C27: Cena Instalace
C28: Cena (s DPH) | D28: 44999 | E28: 79999 | F28: 169999 | G28: 215869 | H28: 102999 | I28: 53890 | K28: Kč
C29: Variabilní náklady | D29: =2%*D28 -> 899.98 | E29: 1599.98 | F29: 3399.98 | G29: 4317.38 | H29: 2059.98 | I29: 1077.8 | K29: Kč
C30: Procentuální růst variabilních nákladů | D30: 0.005 | E30: 0.005 | F30: 0.005 | G30: 0.005 | H30: 0.005 | I30: 0.005
B32: Další investice
C34: 0
C35: Invertor
C36: Max. vstupní výkon
C37: Výstupní napětí
C38: Max. efektivita | D38: 0.95
C39: Cena (s DPH) | D39: =IF(C16=1,63300,IF(C16=2,63300,IF(C16=3,130000,IF(C16=4,50000,IF(C16=5,50000,IF(C16=6,40000)))))) -> 40000 | E39: Kč | F39: =IF('Interaktivní Analýza'!H4=1,63300,IF('Interaktivní Analýza'!H4=2,63300,IF('Interaktivní Analýza'!H4=3,130000,IF('Interaktivní Analýza'!H4=4,50000,IF('Interaktivní Analýza'!H4=5,50000,IF('Interaktivní Analýza'!H4=6,40000)))))) -> 130000
C41: Baterie | D41: =CashFlow!E25 -> 0
C42: Stožár | D42: 21999 | E42: Kč
C43: Kotvící lano + očnice | D43: 450 | E43: Kč
C44: Práce | D44: 5000 | E44: Kč
C45: Další investice
C47: Počáteční investice | D47: =D42+D44+D43+D45+VlastnostMVE(CashFlow!E31,C28)+D39 -> 121339 | E47: Kč | F47: =D42+D44+D43+D45+VlastnostMVE('Interaktivní Analýza'!H4,C28)+F39 -> 327448
B49: Financování MVtE
D51: Půjčka | E51: Hotovost | F51: Jiný systém
C52: 2
C53: Hotovost | D53: 0.6 | E53: 1 | F53: 0
C54: Úrok (%/rok) | D54: 0.06 | E54: 0 | F54: 0
C55: Doba splácení (let) | D55: 20 | E55: 0 | F55: 0
C56: Diskont | D56: 0.05 | E56: (Pro výpočet NPV)
B58: Cena elektřiny
C60: Zelený Bonus | D60: 1430 | E60: Kč/MWh | F60: (https://www.eru.cz/elektrina/cenova-rozhodnuti/platna-cenova-rozhodnuti)
C61: Doba trvání zeleného bonusu | D61: 20 | E61: let | F61: (v roce 2017 20 let, upřesněno v Cenovém rozhodnutí ERU)
C62: Platba za spotřebu el. Energie | D62: =Spotřeba!AL121 -> 1779.324739 | E62: Kč/MWh
C63: garantovaná výkupní cena | D63: 1930 | E63: Kč/MWh

Sheet Spotřeba
A2: Spotřeba elektrické energie rodinného domu | H2: Průměrná spotřeba elektrické energie během dne
A3: Spotřebič | B3: Příkon [W] | C3: Čas denně [h] | D3: Denní spotřeba [Wh] | H3: 0 | I3: 1 | J3: 2 | K3: 3 | L3: 4 | M3: 5 | N3: 6 | O3: 7 | P3: 8 | Q3: 9 | R3: 10 | S3: 11 | T3: 12 | U3: 13 | V3: 14 | W3: 15 | X3: 16 | Y3: 17 | Z3: 18 | AA3: 19 | AB3: 20 | AC3: 21 | AD3: 22 | AE3: 23
A4: Notebook | B4: 80 | C4: 3 | D4: =C4*B4 -> 240 | AA4: =$D$4/3 -> 80 | AB4: =$D$4/3 -> 80 | AC4: 80
A5: Notebook 2 | B5: 95 | C5: 5.5 | D5: =C5*B5 -> 522.5 | X5: =$D$5/5.5 -> 95 | Y5: =$D$5/5.5 -> 95 | Z5: =D5/11 -> 47.5 | AA5: =$D$5/5.5 -> 95 | AB5: =$D$5/5.5 -> 95 | AC5: =$D$5/5.5 -> 95
A6: Stolní PC | B6: 210 | C6: 7.5 | D6: 1575 | P6: 105 | Q6: 210 | R6: 20 | S6: 20 | T6: 20 | U6: 210 | V6: 210 | W6: 20 | X6: 20 | Y6: 20 | Z6: 105 | AA6: 210 | AB6: 210 | AC6: 210
A7: Notebook 3 | B7: 65 | C7: 3 | D7: 195 | Q7: 65 | R7: 65 | AA7: 65
A8: Tiskárna | B8: 340 | C8: =2/60 -> 0.03333333333 | D8: 11.33333333 | AC8: 11
A9: Nabíječka 4x (á 5W) | B9: 20 | C9: 4.5 | D9: 90 | H9: 20 | I9: 20 | J9: 10 | AD9: 20 | AE9: 20
A10: Fén | B10: 1200 | C10: =5/60 -> 0.08333333333 | D10: 100 | O10: =B10*(5/60) -> 100
A11: Plasmová TV | B11: 250 | C11: 1 | D11: 250 | AA11: =B11 -> 250
A12: DVD + SetTopBox | B12: 35 | C12: 1 | D12: 35 | AA12: =B12 -> 35
A13: Reprosoustava | B13: 30 | C13: 1 | D13: 30 | Z13: =B13 -> 30
A14: Varná konvice | B14: 2400 | C14: =8/60 -> 0.1333333333 | D14: 320 | N14: 160 | Z14: 160
A15: Myčka | B15: 2000 | C15: 3 | D15: 6000 | O15: =B15 -> 2000 | T15: 1000 | U15: 1000 | AA15: =B15 -> 2000
A16: Sporák (1/2 plotýnek) | B16: 3000 | C16: =45/60 -> 0.75 | D16: 2250 | S16: =D16/2 -> 1125 | Y16: =D16/2 -> 1125
A17: Trouba | B17: 3200 | C17: 0.5 | D17: 1600 | R17: 1600
A18: Mikrovlnná trouba | B18: 1400 | C18: 0.05 | D18: 70 | Y18: =B18*(3/60) -> 70
A19: Kávovar | B19: 1600 | C19: 0.03333333333 | D19: 53.33333333 | N19: =D19/2 -> 26.66666667 | T19: =N19 -> 26.66666667
A20: Lednice s mrazákem | B20: 17.5 | C20: 24 | D20: 420 | H20: 17.5 | I20: 17.5 | J20: 17.5 | K20: 17.5 | L20: 17.5 | M20: 17.5 | N20: 17.5 | O20: 17.5 | P20: 17.5 | Q20: 17.5 | R20: 17.5 | S20: 17.5 | T20: 17.5 | U20: 17.5 | V20: 17.5 | W20: 17.5 | X20: 17.5 | Y20: 17.5 | Z20: 17.5 | AA20: 17.5 | AB20: 17.5 | AC20: 17.5 | AD20: 17.5 | AE20: 17.5
A21: Mixér | B21: 600 | C21: =2/60 -> 0.03333333333 | D21: 20 | S21: 10 | Y21: 10
A22: Elektrický radiator | B22: 2000 | C22: 0.5 | D22: 1000 | P22: 1000
A23: Sprcha - parogenerátor | B23: 2400 | C23: =15/60 -> 0.25 | D23: 600 | Z23: 600
A24: Bazén, Filtrace | B24: 500 | C24: 5 | D24: 2500 | K24: =$D$24/7 -> 357.1428571 | L24: =$D$24/7 -> 357.1428571 | Q24: =$D$24/7 -> 357.1428571 | R24: =$D$24/7 -> 357.1428571 | X24: =$D$24/7 -> 357.1428571 | Y24: =$D$24/7 -> 357.1428571 | AC24: =$D$24/7 -> 357.1428571
A25: Sauna | B25: 6000 | C25: =0.5 -> 0.5 | D25: 3000 | AB25: 3000
A26: Bojler | B26: 1550 | C26: 2 | D26: 3100 | O26: =D26/4 -> 775 | V26: 775 | AA26: 1550
A27: Mrazák | B27: 28 | C27: 24 | D27: 672 | H27: 28 | I27: 28 | J27: 28 | K27: 28 | L27: 28 | M27: 28 | N27: 28 | O27: 28 | P27: 28 | Q27: 28 | R27: 28 | S27: 28 | T27: 28 | U27: 28 | V27: 28 | W27: 28 | X27: 28 | Y27: 28 | Z27: 28 | AA27: 28 | AB27: 28 | AC27: 28 | AD27: 28 | AE27: 28
A28: Pračka | B28: 480 | C28: 2 | D28: 960 | P28: 480 | X28: 480
A29: Sušička | B29: 1450 | C29: 1.5 | D29: 2175 | R29: 1450 | Y29: =D29/3 -> 725
A30: Žehlička | B30: 1800 | C30: 0.1666666667 | D30: 300 | V30: 300
A31: Osvětlení chodba 1 | B31: 60 | C31: 2 | D31: 120 | O31: =D31/5 -> 24 | Z31: =D31/5 -> 24 | AA31: =D31/5 -> 24 | AB31: =D31/5 -> 24 | AC31: =D31/5 -> 24
A32: Osvětlení chodba 2 | B32: 60 | C32: 2 | D32: 120 | O32: 24 | Z32: 24 | AA32: 24 | AB32: 24 | AC32: 24
A33: Osvětlení chodba 3 | B33: 45 | C33: 2 | D33: 90 | O33: 18 | Z33: 18 | AA33: 18 | AB33: 18 | AC33: 18
A34: Osvětlení pokoj 1 | B34: 45 | C34: 2 | D34: 90 | O34: 18 | Z34: 18 | AA34: 18 | AB34: 18 | AC34: 18
A35: Osvětlení pokoj 2 | B35: 60 | C35: 1 | D35: 60 | O35: 12 | Z35: 12 | AA35: 12 | AB35: 12 | AC35: 12
A36: Osvětlení pokoj 3 | B36: 45 | C36: 2 | D36: 90 | O36: 18 | Z36: 18 | AA36: 18 | AB36: 18 | AC36: 18
A37: Osvětlení koupelna | B37: 60 | C37: 0.5 | D37: 30 | O37: 6 | Z37: 6 | AA37: 6 | AB37: 6 | AC37: 6
A38: Osvětlení pokoj 4 | B38: 30 | C38: 0.5 | D38: 15 | O38: 3 | Z38: 3 | AA38: 3 | AB38: 3 | AC38: 3
A39: Osvětlení pracovna | B39: 25 | C39: 2 | D39: 50 | O39: 10 | Z39: 10 | AA39: 10 | AB39: 10 | AC39: 10
A40: Osvětlení pracovna 2 | B40: 25 | C40: 1 | D40: 25 | O40: 5 | Z40: 5 | AA40: 5 | AB40: 5 | AC40: 5
A41: Osvětlení pracovna 3 | B41: 25 | C41: 0.5 | D41: 12.5 | O41: 2.5 | Z41: 2.5 | AA41: 2.5 | AB41: 2.5 | AC41: 2.5
A42: Osvětlení kuchyň | B42: 40 | C42: 4 | D42: 160 | O42: 32 | Z42: 32 | AA42: 32 | AB42: 32 | AC42: 32
A43: Osvětlení obývák | B43: 40 | C43: 3 | D43: 120 | O43: 24 | Z43: 24 | AA43: 24 | AB43: 24 | AC43: 24
A44: Osvětlení sauna | B44: 40 | C44: 0.5 | D44: 20 | O44: 4 | Z44: 4 | AA44: 4 | AB44: 4 | AC44: 4
A45: Osvětlení garáž | B45: 80 | C45: 1 | D45: 80 | O45: 16 | Z45: 16 | AA45: 16 | AB45: 16 | AC45: 16
A46: Osvětlení sklep | B46: 60 | C46: 0.5 | D46: 30 | O46: 6 | Z46: 6 | AA46: 6 | AB46: 6 | AC46: 6
A47: Osvětlení kotelna | B47: 30 | C47: 0.1 | D47: 3 | O47: 0.6 | Z47: 0.6 | AA47: 0.6 | AB47: 0.6 | AC47: 0.6
A48: Garáž | B48: 140 | C48: =5/60 -> 0.08333333333 | D48: 11.66666667 | O48: 4 | T48: 4 | Y48: 4
A49: Venkovní vrata | B49: 180 | C49: =5/60 -> 0.08333333333 | D49: 15 | O49: 5 | T49: 5 | Y49: 5
A50: Tepelné čerpadlo | B50: 3400 | C50: 5 | D50: 17000 | O50: =$D$50/5 -> 3400 | T50: =$D$50/5 -> 3400 | W50: =$D$50/5 -> 3400 | Z50: =$D$50/5 -> 3400 | AC50: =$D$50/5 -> 3400
A51: oběhové čerpadlo | B51: 150 | C51: 10 | D51: 1500 | O51: =$D$51/10 -> 150 | P51: =$D$51/10 -> 150 | Q51: =$D$51/10 -> 150 | S51: =$D$51/10 -> 150 | T51: =$D$51/10 -> 150 | U51: =$D$51/10 -> 150 | X51: =$D$51/10 -> 150 | Y51: =$D$51/10 -> 150 | AB51: =$D$51/10 -> 150 | AC51: =$D$51/10 -> 150
A52: WiFi router | B52: 7.2 | C52: 24 | D52: 172.8 | H52: 7.2 | I52: 7.2 | J52: 7.2 | K52: 7.2 | L52: 7.2 | M52: 7.2 | N52: 7.2 | O52: 7.2 | P52: 7.2 | Q52: 7.2 | R52: 7.2 | S52: 7.2 | T52: 7.2 | U52: 7.2 | V52: 7.2 | W52: 7.2 | X52: 7.2 | Y52: 7.2 | Z52: 7.2 | AA52: 7.2 | AB52: 7.2 | AC52: 7.2 | AD52: 7.2 | AE52: 7.2
A53: Vysavač | B53: 1400 | C53: 0.15 | D53: 210 | P53: =D53/4 -> 52.5 | Q53: =D53/4 -> 52.5 | R53: =D53/4 -> 52.5 | S53: =D53/4 -> 52.5 | AK53: Spotřeba kWh | AL53: Cena [Kč/MWh]
A54: Radio Kuchyn | B54: 25 | C54: 1 | D54: 25 | S54: 12.5 | Y54: 12.5 | AI54: Spotřeba celkem | AK54: =AF55*150/1000 -> 7223.12
A55: Denní spotřeba | D55: =SUM(D4:D54) -> 48139.13333 | G55: Celkem: | H55: =SUM(H4:H54) -> 72.7 | I55: 72.7 | J55: 62.7 | K55: 409.8428571 | L55: 409.8428571 | M55: 52.7 | N55: 239.3666667 | O55: 6709.8 | P55: 1840.2 | Q55: 887.3428571 | R55: 3597.342857 | S55: 1422.7 | T55: 4658.366667 | U55: 1412.7 | V55: 1337.7 | W55: 3472.7 | X55: 1154.842857 | Y55: 2626.342857 | Z55: 4618.3 | AA55: 4560.8 | AB55: 3810.8 | AC55: 4578.942857 | AD55: 72.7 | AE55: 72.7 | AF55: =SUM(H55:AE55) -> 48154.13333 | AG55: Wh | AI55: VT | AK55: =AF56*150/1000 -> 831.8564286 | AL55: 2045
G56: ve VT | Q56: =Q55 -> 887.3428571 | T56: =T55 -> 4658.366667 | AF56: =SUM(Q56:T56) -> 5545.709524 | AG56: Wh | AI56: NT | AK56: =AK54-AK55 -> 6391.263571 | AL56: 1753.59
C57: v zimně | D57: =D55*150/1000 -> 7220.87 | E57: kWh | AI57: Průměrná platba za el. Energii: | AL57: =($AK$55*$AL$55+$AK$56*$AL$56)/$AK$54 -> 1787.150467
A60: Spotřeba elektrické energie rodinného domu
A61: Spotřebič | B61: Příkon [W] | C61: Čas denně [h] | D61: Denní spotřeba [Wh]
A62: Notebook | B62: 80 | C62: 3 | D62: =C62*B62 -> 240 | AA62: 80 | AB62: 80 | AC62: 80
A63: Notebook 2 | B63: 95 | C63: 5.5 | D63: =C63*B63 -> 522.5 | X63: 95 | Y63: 95 | Z63: 47 | AA63: 95 | AB63: 95 | AC63: 95
A64: Stolní PC | B64: 210 | C64: 7.5 | D64: 1575 | P64: 105 | Q64: 210 | R64: 20 | S64: 20 | T64: 20 | U64: 210 | V64: 210 | W64: 20 | X64: 20 | Y64: 20 | Z64: 105 | AA64: 210 | AB64: 210 | AC64: 210
A65: Notebook 3 | B65: 65 | C65: 3 | D65: 195 | Q65: 65 | R65: 65 | AA65: 65
A66: Tiskárna | B66: 340 | C66: =2/60 -> 0.03333333333 | D66: 11.33333333 | AC66: 11
A67: Nabíječka 4x (á 5W) | B67: 20 | C67: 4.5 | D67: 90 | H67: 20 | I67: 20 | J67: 10 | AD67: 20 | AE67: 20
A68: Fén | B68: 1200 | C68: =5/60 -> 0.08333333333 | D68: 100 | O68: =B68*(5/60) -> 100
A69: Plasmová TV | B69: 250 | C69: 1 | D69: 250 | AA69: =B69 -> 250
A70: DVD + SetTopBox | B70: 35 | C70: 1 | D70: 35 | AA70: =B70 -> 35
A71: Reprosoustava | B71: 30 | C71: 1 | D71: 30 | Y71: =B71*0.5 -> 15 | Z71: =B71 -> 30 | AA71: =B71 -> 30
A72: Varná konvice | B72: 2400 | C72: =8/60 -> 0.1333333333 | D72: 320 | N72: 160 | Z72: 160
A73: Myčka | B73: 2000 | C73: 2 | D73: 4000 | U73: =D73/2 -> 2000 | AA73: =B73 -> 2000
A74: Sporák (1/2 plotýnek) | B74: 3000 | C74: =45/60 -> 0.75 | D74: 2250 | S74: =D74/2 -> 1125 | Y74: =D74/2 -> 1125
A75: Trouba | B75: 3200 | C75: 0.5 | D75: 1600 | R75: 1600
A76: Mikrovlnná trouba | B76: 1400 | C76: 0.05 | D76: 70 | Y76: =B76*(3/60) -> 70
A77: Kávovar | B77: 1600 | C77: 0.03333333333 | D77: 53.33333333 | N77: =D77/2 -> 26.66666667 | T77: =N77 -> 26.66666667
A78: Lednice s mrazákem | B78: 17.5 | C78: 24 | D78: 420 | H78: 17.5 | I78: 17.5 | J78: 17.5 | K78: 17.5 | L78: 17.5 | M78: 17.5 | N78: 17.5 | O78: 17.5 | P78: 17.5 | Q78: 17.5 | R78: 17.5 | S78: 17.5 | T78: 17.5 | U78: 17.5 | V78: 17.5 | W78: 17.5 | X78: 17.5 | Y78: 17.5 | Z78: 17.5 | AA78: 17.5 | AB78: 17.5 | AC78: 17.5 | AD78: 17.5 | AE78: 17.5
A79: Mixér | B79: 600 | C79: =2/60 -> 0.03333333333 | D79: 20 | S79: 10 | Y79: 10
A80: Elektrický radiator | B80: 2000 | C80: 0 | D80: 0 | P80: 0
A81: Sprcha - parogenerátor | B81: 2400 | C81: =15/60 -> 0.25 | D81: 600 | Z81: 600
A82: Bazén, Filtrace | B82: 500 | C82: 8 | D82: 4000 | K82: =$D$82/16 -> 250 | L82: =$D$82/16 -> 250 | O82: =$D$82/16 -> 250 | P82: =$D$82/16 -> 250 | S82: =$D$82/8 -> 500 | T82: =$D$82/8 -> 500 | W82: =$D$82/16 -> 250 | X82: =$D$82/8 -> 500 | Y82: =$D$82/16 -> 250 | AB82: =$D$82/8 -> 500 | AC82: =$D$82/8 -> 500
A83: Sauna | B83: 6000 | C83: 0 | D83: 0
A84: Bojler | B84: 1550 | C84: 1.5 | D84: 2325 | O84: =$D$84/4 -> 581.25 | V84: =$D$84/4 -> 581.25 | AA84: =$D$84/4 -> 581.25 | AB84: =$D$84/4 -> 581.25
A85: Mrazák | B85: 28 | C85: 24 | D85: 672 | H85: 28 | I85: 28 | J85: 28 | K85: 28 | L85: 28 | M85: 28 | N85: 28 | O85: 28 | P85: 28 | Q85: 28 | R85: 28 | S85: 28 | T85: 28 | U85: 28 | V85: 28 | W85: 28 | X85: 28 | Y85: 28 | Z85: 28 | AA85: 28 | AB85: 28 | AC85: 28 | AD85: 28 | AE85: 28
A86: Pračka | B86: 480 | C86: 2 | D86: 960 | P86: 480 | Z86: 480
A87: Sušička | B87: 1450 | C87: 0 | D87: 0
A88: Žehlička | B88: 1800 | C88: 0.1666666667 | D88: 300 | V88: 300
A89: Osvětlení chodba 1 | B89: 60 | C89: 0.25 | D89: 15 | AC89: =D89/2 -> 7.5 | AD89: =D89/2 -> 7.5
A90: Osvětlení chodba 2 | B90: 60 | C90: 0.25 | D90: 15 | AC90: =D90/2 -> 7.5 | AD90: =D90/2 -> 7.5
A91: Osvětlení chodba 3 | B91: 45 | C91: 0.25 | D91: 11.25 | AC91: 5.625 | AD91: 5.625
A92: Osvětlení pokoj 1 | B92: 45 | C92: 0.25 | D92: 11.25 | AC92: 5.625 | AD92: 5.625
A93: Osvětlení pokoj 2 | B93: 60 | C93: 0.25 | D93: 15 | AC93: 7.5 | AD93: 7.5
A94: Osvětlení pokoj 3 | B94: 45 | C94: 0.25 | D94: 11.25 | AC94: =D94/3 -> 3.75 | AD94: =D94/3 -> 3.75
A95: Osvětlení koupelna | B95: 60 | C95: 0.25 | D95: 15 | O95: 5 | AC95: =D95/3 -> 5 | AD95: =D95/3 -> 5
A96: Osvětlení pokoj 4 | B96: 30 | C96: 0.25 | D96: 7.5 | O96: =D96/3 -> 2.5 | AC96: =D96/3 -> 2.5 | AD96: =D96/3 -> 2.5
A97: Osvětlení pracovna | B97: 25 | C97: 0.25 | D97: 6.25 | AC97: 3.125 | AD97: 3.125
A98: Osvětlení pracovna 2 | B98: 25 | C98: 0.25 | D98: 6.25 | AC98: 3.125 | AD98: 3.125
A99: Osvětlení pracovna 3 | B99: 25 | C99: 0.25 | D99: 6.25 | AC99: 3.125 | AD99: 3.125
A100: Osvětlení kuchyň | B100: 40 | C100: 1 | D100: 40 | AC100: 20 | AD100: 20
A101: Osvětlení obývák | B101: 40 | C101: 0.5 | D101: 20 | AC101: 10 | AD101: 10
A102: Osvětlení sauna | B102: 40 | C102: 0 | D102: 0 | Z102: =D102/5 -> 0 | AA102: =D102/5 -> 0 | AB102: =D102/5 -> 0 | AC102: =D102/5 -> 0
A103: Osvětlení garáž | B103: 80 | C103: 1 | D103: 80 | O103: 10 | Z103: 16 | AA103: 16 | AB103: 16 | AC103: 16
A104: Osvětlení sklep | B104: 60 | C104: 0.5 | D104: 30 | Z104: 6 | AA104: 6 | AB104: 6 | AC104: 6
A105: Osvětlení kotelna | B105: 30 | C105: 0.1 | D105: 3 | O105: =D105/5 -> 0.6 | Z105: 0.6 | AA105: 0.6 | AB105: 0.6 | AC105: 0.6
A106: Garáž | B106: 140 | C106: =5/60 -> 0.08333333333 | D106: 11.66666667 | O106: 4 | T106: 4 | Y106: 4
A107: Venkovní vrata | B107: 180 | C107: =5/60 -> 0.08333333333 | D107: 15 | O107: 5 | T107: 5 | Y107: 5
A108: Tepelné čerpadlo | B108: 3400 | C108: 0 | D108: 0
A109: oběhové čerpadlo | B109: 150 | C109: 0 | D109: 0
A110: WiFi router | B110: 7.2 | C110: 24 | D110: 172.8 | H110: =$D$110/24 -> 7.2 | I110: =$D$110/24 -> 7.2 | J110: 7.2 | K110: 7.2 | L110: 7.2 | M110: 7.2 | N110: 7.2 | O110: 7.2 | P110: 7.2 | Q110: 7.2 | R110: 7.2 | S110: 7.2 | T110: 7.2 | U110: 7.2 | V110: 7.2 | W110: 7.2 | X110: 7.2 | Y110: 7.2 | Z110: 7.2 | AA110: 7.2 | AB110: 7.2 | AC110: 7.2 | AD110: 7.2 | AE110: 7.2 | AI110: Léto
A111: Vysavač | B111: 1400 | C111: 0.15 | D111: 210 | P111: =D111/4 -> 52.5 | Q111: =D111/4 -> 52.5 | R111: =D111/4 -> 52.5 | S111: =D111/4 -> 52.5 | AK111: Spotřeba kWh | AL111: Cena [Kč/MWh]
A112: Radio Kuchyn | B112: 25 | C112: 1 | D112: 25 | S112: 12.5 | Y112: 12.5 | AI112: Spotřeba celkem | AK112: =AF113*215/1000 -> 4603.232417
A113: Denní spotřeba | D113: =SUM(D62:D112) -> 21366.63333 | H113: =SUM(H62:H112) -> 72.7 | I113: 72.7 | J113: 62.7 | K113: 302.7 | L113: 302.7 | M113: 52.7 | N113: 239.3666667 | O113: 1011.05 | P113: 940.2 | Q113: 380.2 | R113: 1790.2 | S113: 1772.7 | T113: 608.3666667 | U113: 2262.7 | V113: 1143.95 | W113: 322.7 | X113: 667.7 | Y113: 1659.2 | Z113: 1497.3 | AA113: 3421.55 | AB113: 1541.55 | AC113: 1055.675 | AD113: 157.075 | AE113: 72.7 | AF113: =SUM(H113:AE113) -> 21410.38333 | AG113: Wh | AI113: VT | AK113: =AF114*215/1000 -> 212.5418333 | AL113: 2045
Q114: =Q113 -> 380.2 | T114: =T113 -> 608.3666667 | AF114: =SUM(Q114:T114) -> 988.5666667 | AG114: Wh | AI114: NT | AK114: =AK112-AK113 -> 4390.690583 | AL114: 1753.59
C115: v letě celkem | D115: =D113*215/1000 -> 4593.826167 | AI115: Průměrná platba za el. Energii: | AL115: =(AK113*AL113+AK114*AL114)/AK112 -> 1767.04507
AI117: Celkem
AI118: Spotřeba Celekm | AK118: =AK112+AK54 -> 11826.35242
AI119: VT | AK119: =AK113+AK55 -> 1044.398262 | AL119: 2045
AI120: NT | AK120: =AK114+AK56 -> 10781.95415 | AL120: 1753.59
AL121: =(AK119*AL119+AK120*AL120)/AK118 -> 1779.324739

Sheet Site SWT
A2: Výpočty parametrů plánovaného místa výstavby MVtE
B4: Parametr | C4: Hodnota | D4: Jednotky
B5: Průměrná rychlost větru | C5: =IF(ISBLANK($G$43),'Input Sheet'!$D$10*(C10/C9)^C8,IF(ISERR($G$43),'Input Sheet'!$D$10*(C10/C9)^C8,'Site SWT'!G43)) -> 3.554975971 | D5: m/s
B6: Weibull A | C6: =C5/0.88 -> 4.039745421 | D6: m/s
B7: Weibull k | C7: ='Input Sheet'!D6 -> 1.93 | D7: --
B8: Korekční vztah - druh povrchu | C8: ='Input Sheet'!D9 -> 0.21 | D8: --
B9: Výška měření rychlosti větru | C9: ='Input Sheet'!D7 -> 5.5 | D9: m
B10: Výška rotoru MVtE | C10: ='Input Sheet'!D8 -> 10 | D10: m
Z14: ZIMA | AB14: Toky Energie ZIMA
B15: Table for calculating average wind speed | I15: Weibull' s probabilty wind speed distribution calcultion | S15: AP1200 | T15: AP2400 | U15: AP7 | V15: SKYSTREAM 3.7 | W15: HY-3000L 5BLADE | X15: HY-1500L 5BLADE | Z15: Spotřeba domu | AB15: AP1200 | AC15: AP2400 | AD15: AP7 | AE15: SKYSTREAM 3.7 | AF15: HY-3000L 5BLADE | AG15: HY-1500L 5BLADE
B16: Time of Measurement | C16: Speed (m/s) | E16: Results | G16: Speed Recalculated to Hub Height (m/s) | I16: Wind Speed (m/s) | K16: Wind Speed Frequency During a day | N16: Chosen SWT's Power (W) | O16: Portion of Generated Energy (W)
B17: 2017-03-10T07:58:16 | C17: 6.2 | E17: Hour | F17: Speed (m/s) | R17: 0 | S17: 41.91783927 | T17: 62.99784969 | U17: 141.533075 | V17: 34.67748945 | W17: 56.86812092 | X17: 32.13839761 | Z17: =Spotřeba!H$55 -> 72.7 | AB17: =$Z17-S17 -> 30.78216073 | AC17: =$Z17-T17 -> 9.702150309 | AD17: -68.833075 | AE17: 38.02251055 | AF17: 15.83187908 | AG17: 40.56160239 | AH17: 0
B18: 2017-03-10T08:08:16 | C18: 3.9 | E18: 0 | F18: 2.356206887 | G18: 2.671389756 | I18: 0 | K18: =_xlfn.WEIBULL.DIST(I18,$C$7,$C$6,0) -> 0 | N18: =GeneratedPower(I18, 'Input Sheet'!$C$16) -> 0 | O18: =N18*K18/2 -> 0 | R18: 1 | S18: 39.95770463 | T18: 60.04970339 | U18: 134.9087623 | V18: 32.89022389 | W18: 54.38266031 | X18: 30.73378744 | Z18: =Spotřeba!I$55 -> 72.7 | AB18: =$Z18-S18 -> 32.74229537 | AC18: 12.65029661 | AD18: -62.20876234 | AE18: 39.80977611 | AF18: 18.31733969 | AG18: 41.96621256 | AH18: 1
B19: 2017-03-10T08:18:16 | C19: 6.5 | E19: 1 | F19: 2.323448278 | G19: 2.634249124 | I19: 0.5 | K19: =_xlfn.WEIBULL.DIST(I19,$C$7,$C$6,0) -> 0.06724119839 | N19: =GeneratedPower(I19, 'Input Sheet'!$C$16) -> 0 | O19: =N19*K19/2 -> 0 | R19: 2 | S19: 47.22062093 | T19: 70.97725885 | U19: 159.4642656 | V19: 39.52616753 | W19: 63.5951536 | X19: 35.93999681 | Z19: =Spotřeba!J$55 -> 62.7 | AB19: 15.47937907 | AC19: -8.277258847 | AD19: -96.76426559 | AE19: 23.17383247 | AF19: -0.8951535959 | AG19: 26.76000319 | AH19: 2
B20: 2017-03-10T08:28:16 | C20: 4.7 | E20: 2 | F20: 2.44068966 | G20: 2.767173541 | I20: 1 | K20: =_xlfn.WEIBULL.DIST(I20,$C$7,$C$6,0) -> 0.1218849192 | N20: =GeneratedPower(I20, 'Input Sheet'!$C$16) -> 0 | O20: 0 | R20: 3 | S20: 38.64708433 | T20: 58.07879597 | U20: 130.4804062 | V20: 31.69691735 | W20: 52.72091302 | X20: 29.79467893 | Z20: =Spotřeba!K$55 -> 409.8428571 | AB20: 371.1957728 | AC20: 351.7640612 | AD20: 279.3624509 | AE20: 378.1459398 | AF20: 357.1219441 | AG20: 380.0481782 | AH20: 3
B21: 2017-03-10T08:38:16 | C21: 5.2 | E21: 3 | F21: 2.301034476 | G21: 2.608837094 | I21: 1.5 | K21: 0.1640145165 | N21: =GeneratedPower(I21, 'Input Sheet'!$C$16) -> 0 | O21: 0 | R21: 4 | S21: 50.27409984 | T21: 75.57511847 | U21: 169.7982443 | V21: 42.32606008 | W21: 67.47217664 | X21: 38.1309378 | Z21: =Spotřeba!L$55 -> 409.8428571 | AB21: 359.5687573 | AC21: 334.2677387 | AD21: 240.0446128 | AE21: 367.5167971 | AF21: 342.3706805 | AG21: 371.7119193 | AH21: 4
B22: 2017-03-10T08:48:16 | C22: 6.6 | E22: 4 | F22: 2.486896551 | G22: 2.819561393 | I22: 2 | K22: 0.1920590134 | N22: =GeneratedPower(I22, 'Input Sheet'!$C$16) -> 0 | O22: 0 | R22: 5 | S22: 53.65385668 | T22: 80.66757464 | U22: 181.2458851 | V22: 45.4312295 | W22: 71.76760713 | X22: 40.55825822 | Z22: =Spotřeba!M$55 -> 52.7 | AB22: -0.9538566781 | AC22: -27.96757464 | AD22: -128.5458851 | AE22: 7.268770499 | AF22: -19.06760713 | AG22: 12.14174178 | AH22: 5
B23: 2017-03-10T08:58:16 | C23: 4.8 | E23: 5 | F23: 2.536206895 | G23: 2.875467836 | I23: 2.5 | K23: 0.2057650558 | N23: =GeneratedPower(I23, 'Input Sheet'!$C$16) -> 13.56336806 | O23: 1.395433593 | R23: 6 | S23: 42.0224806 | T23: 63.15525423 | U23: 141.8867628 | V23: 34.77298426 | W23: 57.00081755 | X23: 32.21338832 | Z23: =Spotřeba!N$55 -> 239.3666667 | AB23: 197.3441861 | AC23: 176.2114124 | AD23: 97.47990387 | AE23: 204.5936824 | AF23: 182.3658491 | AG23: 207.1532784 | AH23: 6
B24: 2017-03-10T09:08:16 | C24: 8.7 | E24: 6 | F24: 2.357931037 | G24: 2.673344541 | I24: 3 | K24: 0.2062853073 | N24: =GeneratedPower(I24, 'Input Sheet'!$C$16) -> 23.43750001 | O24: 2.417405946 | R24: 7 | S24: 42.8775763 | T24: 64.44158956 | U24: 144.7771944 | V24: 35.55363476 | W24: 58.08522797 | X24: 32.82621899 | Z24: =Spotřeba!O$55 -> 6709.8 | AB24: 6666.922424 | AC24: 6645.35841 | AD24: 6565.022806 | AE24: 6674.246365 | AF24: 6651.714772 | AG24: 6676.973781 | AH24: 7
B25: 2017-03-10T09:18:16 | C25: 5.3 | E25: 7 | F25: 2.371929836 | G25: 2.689215918 | I25: 3.5 | K25: 0.1958808661 | N25: =GeneratedPower(I25, 'Input Sheet'!$C$16) -> 37.21788195 | O25: 3.645135476 | R25: 8 | S25: 52.02470492 | T25: 78.21237875 | U25: 175.7264043 | V25: 43.93365869 | W25: 69.69646791 | X25: 39.38788067 | Z25: =Spotřeba!P$55 -> 1840.2 | AB25: 1788.175295 | AC25: 1761.987621 | AD25: 1664.473596 | AE25: 1796.266341 | AF25: 1770.503532 | AG25: 1800.812119 | AH25: 8
B26: 2017-03-10T09:28:16 | C26: 7.1 | E26: 8 | F26: 2.512666653 | G26: 2.848778685 | I26: 4 | K26: 0.1774697199 | N26: =GeneratedPower(I26, 'Input Sheet'!$C$16) -> 55.55555557 | O26: 4.929714443 | R26: 9 | S26: 76.59310086 | T26: 115.3694803 | U26: 259.3589956 | V26: 66.67484422 | W26: 101.1104199 | X26: 57.13553215 | Z26: =Spotřeba!Q$55 -> 887.3428571 | AB26: 810.7497563 | AC26: 771.9733768 | AD26: 627.9838616 | AE26: 820.6680129 | AF26: 786.2324372 | AG26: 830.207325 | AH26: 9
B27: 2017-03-10T09:38:16 | C27: 4.3 | E27: 9 | F27: 2.831777768 | G27: 3.210576356 | I27: 4.5 | K27: 0.1541505127 | N27: =GeneratedPower(I27, 'Input Sheet'!$C$16) -> 79.10156252 | O27: 6.096773208 | R27: 10 | S27: 121.190141 | T27: 184.0013136 | U27: 415.0727716 | V27: 109.180562 | W27: 159.8611967 | X27: 90.2615231 | Z27: =Spotřeba!R$55 -> 3597.342857 | AB27: 3476.152716 | AC27: 3413.341544 | AD27: 3182.270086 | AE27: 3488.162295 | AF27: 3437.48166 | AG27: 3507.081334 | AH27: 10
B28: 2017-03-10T09:48:16 | C28: 8.1 | E28: 10 | F28: 3.28966667 | G28: 3.72971571 | I28: 5 | K28: 0.1287940504 | N28: =GeneratedPower(I28, 'Input Sheet'!$C$16) -> 108.5069445 | O28: 6.987524437 | R28: 11 | S28: 154.3435268 | T28: 236.3880998 | U28: 535.7787321 | V28: 142.3483268 | W28: 205.7121517 | X28: 115.9923874 | Z28: =Spotřeba!S$55 -> 1422.7 | AB28: 1268.356473 | AC28: 1186.3119 | AD28: 886.9212679 | AE28: 1280.351673 | AF28: 1216.987848 | AG28: 1306.707613 | AH28: 11
B29: 2017-03-10T09:58:16 | C29: 6.1 | E29: 11 | F29: 3.577333321 | G29: 4.055862684 | I29: 5.5 | K29: 0.1037581273 | N29: =GeneratedPower(I29, 'Input Sheet'!$C$16) -> 144.4227431 | O29: 7.492516682 | R29: 12 | S29: 153.7781458 | T29: 235.483911 | U29: 533.6787779 | V29: 141.7689608 | W29: 204.9118307 | X29: 115.5444624 | Z29: =Spotřeba!T$55 -> 4658.366667 | AB29: 4504.588521 | AC29: 4422.882756 | AD29: 4124.687889 | AE29: 4516.597706 | AF29: 4453.454836 | AG29: 4542.822204 | AH29: 12
B30: 2017-03-10T10:08:16 | C30: 7.7 | E30: 12 | F30: 3.57266667 | G30: 4.050571788 | I30: 6 | K30: 0.08074390272 | N30: =GeneratedPower(I30, 'Input Sheet'!$C$16) -> 187.5 | O30: 7.569740882 | R30: 13 | S30: 216.11646 | T30: 337.5094349 | U30: 774.7171179 | V30: 208.9700538 | W30: 297.4439376 | X30: 167.0024593 | Z30: =Spotřeba!U$55 -> 1412.7 | AB30: 1196.58354 | AC30: 1075.190565 | AD30: 637.9828821 | AE30: 1203.729946 | AF30: 1115.256062 | AG30: 1245.697541 | AH30: 13
B31: 2017-03-10T10:18:16 | C31: 5.7 | E31: 13 | F31: 4.055666677 | G31: 4.598181287 | I31: 6.5 | K31: 0.06078087294 | N31: =GeneratedPower(I31, 'Input Sheet'!$C$16) -> 238.389757 | O31: 7.244768765 | R31: 14 | S31: 265.6794193 | T31: 421.9478153 | U31: 980.6995856 | V31: 267.6931265 | W31: 377.629519 | X31: 211.023506 | Z31: =Spotřeba!V$55 -> 1337.7 | AB31: 1072.020581 | AC31: 915.7521847 | AD31: 357.0004144 | AE31: 1070.006874 | AF31: 960.070481 | AG31: 1126.676494 | AH31: 14
B32: 2017-03-10T10:28:16 | C32: 6.8 | E32: 14 | F32: 4.413000013 | G32: 5.003314053 | I32: 7 | K32: 0.04430740226 | N32: =GeneratedPower(I32, 'Input Sheet'!$C$16) -> 297.7430556 | O32: 6.596110668 | R32: 15 | S32: 261.5001901 | T32: 414.7173577 | U32: 962.8299012 | V32: 262.5479148 | W32: 370.6324848 | X32: 207.2033694 | Z32: =Spotřeba!W$55 -> 3472.7 | AB32: 3211.19981 | AC32: 3057.982642 | AD32: 2509.870099 | AE32: 3210.152085 | AF32: 3102.067515 | AG32: 3265.496631 | AH32: 15
B33: 2017-03-10T10:38:16 | C33: 7.9 | E33: 15 | F33: 4.383333355 | G33: 4.969678973 | I33: 7.5 | K33: 0.03130607862 | N33: =GeneratedPower(I33, 'Input Sheet'!$C$16) -> 366.2109376 | O33: 5.732314202 | R33: 16 | S33: 245.4778753 | T33: 387.1838591 | U33: 895.17753 | V33: 243.1570262 | W33: 344.212224 | X33: 192.7426208 | Z33: =Spotřeba!X$55 -> 1154.842857 | AB33: 909.3649819 | AC33: =$Z33-T33 -> 767.658998 | AD33: =$Z33-U33 -> 259.6653271 | AE33: =$Z33-V33 -> 911.6858309 | AF33: =$Z33-W33 -> 810.6306332 | AG33: =$Z33-X33 -> 962.1002364 | AH33: 16
B34: 2017-03-10T10:48:16 | C34: 9.4 | E34: 16 | F34: 4.268965507 | G34: 4.840012475 | I34: 8 | K34: 0.02145588168 | N34: =GeneratedPower(I34, 'Input Sheet'!$C$16) -> 444.4444446 | O34: 4.767973707 | R34: 17 | S34: 259.8433765 | T34: 411.8564597 | U34: 955.7712326 | V34: 260.5182063 | W34: 367.8707103 | X34: 205.6944372 | Z34: =Spotřeba!Y$55 -> 2626.342857 | AB34: 2366.499481 | AC34: 2214.486397 | AD34: 1670.571625 | AE34: 2365.824651 | AF34: 2258.472147 | AG34: 2420.64842 | AH34: 17
B35: 2017-03-10T10:58:16 | C35: 8.3 | E35: 17 | F35: 4.371555548 | G35: 4.956325683 | I35: 8.5 | K35: 0.0142724733 | N35: =GeneratedPower(I35, 'Input Sheet'!$C$16) -> 533.0946182 | O35: 3.804289353 | R35: 18 | S35: 229.2873894 | T35: 359.6659752 | U35: 828.1925655 | V35: 224.0935375 | W35: 318.1619286 | X35: 178.4277054 | Z35: =Spotřeba!Z$55 -> 4618.3 | AB35: 4389.012611 | AC35: 4258.634025 | AD35: 3790.107435 | AE35: 4394.206462 | AF35: 4300.138071 | AG35: 4439.872295 | AH35: 18
B36: 2017-03-10T11:08:16 | C36: 6.2 | E36: 18 | F36: 4.15206895 | G36: 4.707479008 | I36: 9 | K36: 0.009219690716 | N36: =GeneratedPower(I36, 'Input Sheet'!$C$16) -> 632.8125002 | O36: 2.917167766 | R36: 19 | S36: 141.4787976 | T36: 215.9082613 | U36: 488.3626702 | V36: 129.2881831 | W36: 187.6646533 | X36: 105.880629 | Z36: =Spotřeba!AA$55 -> 4560.8 | AB36: 4419.321202 | AC36: 4344.891739 | AD36: 4072.43733 | AE36: 4431.511817 | AF36: 4373.135347 | AG36: 4454.919371 | AH36: 19
B37: 2017-03-10T11:18:16 | C37: 9 | E37: 19 | F37: 3.46931034 | G37: 3.933389786 | I37: 9.5 | K37: 0.005786213614 | N37: =GeneratedPower(I37, 'Input Sheet'!$C$16) -> 744.2491321 | O37: 2.15319223 | R37: 20 | S37: 87.89354394 | T37: 132.5893148 | U37: 298.2337448 | V37: 77.26740668 | W37: 115.7419639 | X37: 65.39636331 | Z37: =Spotřeba!AB$55 -> 3810.8 | AB37: 3722.906456 | AC37: 3678.210685 | AD37: 3512.566255 | AE37: 3733.532593 | AF37: 3695.058036 | AG37: 3745.403637 | AH37: 20
B38: 2017-03-10T11:28:16 | C38: 7.1 | E38: 20 | F38: 2.9589655 | G38: 3.354777617 | I38: 10 | K38: 0.003529428469 | N38: =GeneratedPower(I38, 'Input Sheet'!$C$16) -> 868.0555558 | O38: 1.531869996 | R38: 21 | S38: 92.08004033 | T38: 138.9951681 | U38: 312.7227205 | V38: 81.21808553 | W38: 121.2008933 | X38: 68.47699377 | Z38: =Spotřeba!AC$55 -> 4578.942857 | AB38: 4486.862817 | AC38: 4439.947689 | AD38: 4266.220137 | AE38: 4497.724772 | AF38: 4457.741964 | AG38: 4510.465863 | AH38: 21
B39: 2017-03-10T11:38:16 | C39: 8.1 | E39: 21 | F39: 3.003793119 | G39: 3.405601695 | I39: 10.5 | K39: 0.002093128171 | N39: =GeneratedPower(I39, 'Input Sheet'!$C$16) -> 1004.882813 | O39: 1.051674262 | R39: 22 | S39: 74.74443285 | T39: 112.5614859 | U39: 253.0285906 | V39: 64.95094893 | W39: 98.7297697 | X39: 55.79100529 | Z39: =Spotřeba!AD$55 -> 72.7 | AB39: -2.044432852 | AC39: -39.86148591 | AD39: -180.3285906 | AE39: 7.749051073 | AF39: -26.0297697 | AG39: 16.90899471 | AH39: 22
B40: 2017-03-10T11:48:16 | C40: 6.9 | E40: 22 | F40: 2.809999985 | G40: 3.185885423 | I40: 11 | K40: 0.001207260818 | N40: =GeneratedPower(I40, 'Input Sheet'!$C$16) -> 1155.381945 | O40: 0.6974236759 | R40: 23 | S40: 45.1217438 | T40: 67.81821974 | U40: 152.3649332 | V40: 37.60482766 | W40: 60.93181991 | X40: 34.43489779 | Z40: =Spotřeba!AE$55 -> 72.7 | AB40: 27.5782562 | AC40: 4.881780259 | AD40: -79.6649332 | AE40: 35.09517234 | AF40: 11.76818009 | AG40: 38.26510221 | AH40: 23
B41: 2017-03-10T11:58:16 | C41: 3.7 | E41: 23 | F41: 2.407931015 | G41: 2.730032869 | I41: 11.5 | K41: 0.0006773889438 | N41: =GeneratedPower(I41, 'Input Sheet'!$C$16) -> 1320.203993 | O41: 0.4471457943
B42: 2017-03-10T12:08:16 | C42: 6.3 | I42: 12 | K42: 0.0003698388626 | N42: =GeneratedPower(I42, 'Input Sheet'!$C$16) -> 1500 | O42: 0.277379147 | R42: během zimy [kWh] | S42: =SUM(S17:S41)*150/1000 -> 425.0586227 | T42: =SUM(T17:T41)*150/1000 -> 657.922752 | U42: 1503.87163 | V42: 398.7135565 | W42: 582.5106973 | X42: 327.4097155 | Z42: Denně nespotřebováno | AB42: =-SUMIFS(AB17:AB40,AB17:AB40,"<0") -> 2.99828953 | AC42: 76.10631939 | AD42: 616.3455118 | AE42: 0 | AF42: 45.99253043 | AG42: 0 | AH42: Wh
B43: 2017-03-10T12:18:16 | C43: 4.5 | E43: Average | F43: =AVERAGE(F18:F41) -> 3.13554353 | G43: =AVERAGE(G18:G41) -> 3.554975971 | I43: 12.5 | K43: 0.0001965259331 | N43: =GeneratedPower(I43, 'Input Sheet'!$C$16) -> 1500 | O43: 0.1473944498 | R43: % využito | S43: =S42*10^3/('Input Sheet'!$D$18*150*24) -> 0.09839319969 | T43: =T42*10^3/('Input Sheet'!$D$18*150*24) -> 0.1522969333 | U43: =U42*10^3/('Input Sheet'!$D$18*150*24) -> 0.348118433 | V43: =V42*10^3/('Input Sheet'!$D$18*150*24) -> 0.09229480474 | W43: =W42*10^3/('Input Sheet'!$D$18*150*24) -> 0.1348404392 | X43: =X42*10^3/('Input Sheet'!$D$18*150*24) -> 0.07578928601 | Z43: V zimě nespotřebováno | AB43: =AB42*150/1000 -> 0.4497434295 | AC43: =AC42*150/1000 -> 11.41594791 | AD43: 92.45182676 | AE43: 0 | AF43: 6.898879565 | AG43: 0 | AH43: kWh
B44: 2017-03-10T12:28:16 | C44: 4.7 | I44: 13 | K44: 0.0001016592076 | N44: =GeneratedPower(I44, 'Input Sheet'!$C$16) -> 1500 | O44: 0.07624440571 | Z44: Ze zimní gener. Energie | AB44: =AB43/S42 -> 0.001058073888 | AC44: 0.01735150194 | AD44: 0.0614758766 | AE44: 0 | AF44: 0.01184335257 | AG44: 0
B45: 2017-03-10T12:38:16 | C45: 5.6 | I45: 13.5 | K45: 5.120026318e-05 | N45: =GeneratedPower(I45, 'Input Sheet'!$C$16) -> 1500 | O45: 0.03840019738
B46: 2017-03-10T12:48:16 | C46: 3.2 | I46: 14 | K46: 2.511127848e-05 | N46: =GeneratedPower(I46, 'Input Sheet'!$C$16) -> 1500 | O46: 0.01883345886 | Z46: LÉTO | AB46: Toky Energie LÉTO
B47: 2017-03-10T12:58:16 | C47: 4.8 | I47: 14.5 | K47: 1.199508807e-05 | N47: =GeneratedPower(I47, 'Input Sheet'!$C$16) -> 1500 | O47: 0.008996316053 | S47: AP1200 | T47: AP2400 | U47: AP7 | V47: SKYSTREAM 3.7 | W47: HY-3000L 5BLADE | X47: HY-1500L 5BLADE | Z47: Spotřeba domu | AB47: AP1200 | AC47: AP2400 | AD47: AP7 | AE47: SKYSTREAM 3.7 | AF47: HY-3000L 5BLADE | AG47: HY-1500L 5BLADE
B48: 2017-03-10T13:08:16 | C48: 4.8 | I48: 15 | K48: 5.581332105e-06 | N48: =GeneratedPower(I48, 'Input Sheet'!$C$16) -> 1500 | O48: 0.004185999079
B49: 2017-03-10T13:18:16 | C49: 6.9 | I49: 15.5 | K49: 2.53005233e-06 | N49: =GeneratedPower(I49, 'Input Sheet'!$C$16) -> 1500 | O49: 0.001897539248 | R49: 0 | S49: =S17 -> 41.91783927 | T49: =T17 -> 62.99784969 | U49: 141.533075 | V49: 34.67748945 | W49: 56.86812092 | X49: 32.13839761 | Z49: =Spotřeba!H$113 -> 72.7 | AB49: =$Z49-S49 -> 30.78216073 | AC49: =$Z49-T49 -> 9.702150309 | AD49: =$Z49-U49 -> -68.833075 | AE49: =$Z49-V49 -> 38.02251055 | AF49: =$Z49-W49 -> 15.83187908 | AG49: =$Z49-X49 -> 40.56160239 | AH49: 0
B50: 2017-03-10T13:28:16 | C50: 5.3 | I50: 16 | K50: 1.117459662e-06 | N50: =GeneratedPower(I50, 'Input Sheet'!$C$16) -> 1500 | O50: 0.0008380947464 | R50: 1 | S50: =S18 -> 39.95770463 | T50: 60.04970339 | U50: 134.9087623 | V50: 32.89022389 | W50: 54.38266031 | X50: 30.73378744 | Z50: =Spotřeba!I113 -> 72.7 | AB50: =$Z50-S50 -> 32.74229537 | AC50: 12.65029661 | AD50: -62.20876234 | AE50: 39.80977611 | AF50: 18.31733969 | AG50: 41.96621256 | AH50: 1
B51: 2017-03-10T13:38:16 | C51: 5.2 | I51: 16.5 | K51: 4.809444681e-07 | N51: =GeneratedPower(I51, 'Input Sheet'!$C$16) -> 1500 | O51: 0.000360708351 | R51: 2 | S51: 47.22062093 | T51: 70.97725885 | U51: 159.4642656 | V51: 39.52616753 | W51: 63.5951536 | X51: 35.93999681 | Z51: =Spotřeba!J113 -> 62.7 | AB51: 15.47937907 | AC51: -8.277258847 | AD51: -96.76426559 | AE51: 23.17383247 | AF51: -0.8951535959 | AG51: 26.76000319 | AH51: 2
B52: 2017-03-10T13:48:16 | C52: 3.2 | I52: 17 | K52: 2.017277496e-07 | N52: =GeneratedPower(I52, 'Input Sheet'!$C$16) -> 1500 | O52: 0.0001512958122 | R52: 3 | S52: 38.64708433 | T52: 58.07879597 | U52: 130.4804062 | V52: 31.69691735 | W52: 52.72091302 | X52: 29.79467893 | Z52: =Spotřeba!K113 -> 302.7 | AB52: 264.0529157 | AC52: 244.621204 | AD52: 172.2195938 | AE52: 271.0030827 | AF52: 249.979087 | AG52: 272.9053211 | AH52: 3
B53: 2017-03-10T13:58:16 | C53: 5.2 | I53: 17.5 | K53: 8.246849958e-08 | N53: =GeneratedPower(I53, 'Input Sheet'!$C$16) -> 1500 | O53: 6.185137468e-05 | R53: 4 | S53: 50.27409984 | T53: 75.57511847 | U53: 169.7982443 | V53: 42.32606008 | W53: 67.47217664 | X53: 38.1309378 | Z53: =Spotřeba!L113 -> 302.7 | AB53: 252.4259002 | AC53: 227.1248815 | AD53: 132.9017557 | AE53: 260.3739399 | AF53: 235.2278234 | AG53: 264.5690622 | AH53: 4
B54: 2017-03-10T14:08:16 | C54: 5.7 | I54: 18 | K54: 3.286274763e-08 | N54: =GeneratedPower(I54, 'Input Sheet'!$C$16) -> 1500 | O54: 2.464706072e-05 | R54: 5 | S54: 53.65385668 | T54: 80.66757464 | U54: 181.2458851 | V54: 45.4312295 | W54: 71.76760713 | X54: 40.55825822 | Z54: =Spotřeba!M113 -> 52.7 | AB54: -0.9538566781 | AC54: -27.96757464 | AD54: -128.5458851 | AE54: 7.268770499 | AF54: -19.06760713 | AG54: 12.14174178 | AH54: 5
B55: 2017-03-10T14:18:16 | C55: 7.7 | I55: 18.5 | K55: 1.276592504e-08 | N55: =GeneratedPower(I55, 'Input Sheet'!$C$16) -> 1500 | O55: 9.574443779e-06 | R55: 6 | S55: 42.0224806 | T55: 63.15525423 | U55: 141.8867628 | V55: 34.77298426 | W55: 57.00081755 | X55: 32.21338832 | Z55: =Spotřeba!N113 -> 239.3666667 | AB55: 197.3441861 | AC55: 176.2114124 | AD55: 97.47990387 | AE55: 204.5936824 | AF55: 182.3658491 | AG55: 207.1532784 | AH55: 6
B56: 2017-03-10T14:28:16 | C56: 7.3 | I56: 19 | K56: 4.834711792e-09 | N56: =GeneratedPower(I56, 'Input Sheet'!$C$16) -> 1500 | O56: 3.626033844e-06 | R56: 7 | S56: 42.8775763 | T56: 64.44158956 | U56: 144.7771944 | V56: 35.55363476 | W56: 58.08522797 | X56: 32.82621899 | Z56: =Spotřeba!O113 -> 1011.05 | AB56: 968.1724237 | AC56: 946.6084104 | AD56: 866.2728056 | AE56: 975.4963652 | AF56: 952.964772 | AG56: 978.223781 | AH56: 7
B57: 2017-03-10T14:38:16 | C57: 5.6 | I57: 19.5 | K57: 1.785229809e-09 | N57: =GeneratedPower(I57, 'Input Sheet'!$C$16) -> 1500 | O57: 1.338922356e-06 | R57: 8 | S57: 52.02470492 | T57: 78.21237875 | U57: 175.7264043 | V57: 43.93365869 | W57: 69.69646791 | X57: 39.38788067 | Z57: =Spotřeba!P113 -> 940.2 | AB57: 888.1752951 | AC57: 861.9876213 | AD57: 764.4735957 | AE57: 896.2663413 | AF57: 870.5035321 | AG57: 900.8121193 | AH57: 8
B58: 2017-03-10T14:48:16 | C58: 6.7 | I58: 20 | K58: 6.427714026e-10 | N58: =GeneratedPower(I58, 'Input Sheet'!$C$16) -> 1500 | O58: 4.82078552e-07 | R58: 9 | S58: 76.59310086 | T58: 115.3694803 | U58: 259.3589956 | V58: 66.67484422 | W58: 101.1104199 | X58: 57.13553215 | Z58: =Spotřeba!Q113 -> 380.2 | AB58: 303.6068991 | AC58: 264.8305197 | AD58: 120.8410044 | AE58: 313.5251558 | AF58: 279.0895801 | AG58: 323.0644678 | AH58: 9
B59: 2017-03-10T14:58:16 | C59: 6.5 | I59: 20.5 | K59: 2.256783511e-10 | N59: =GeneratedPower(I59, 'Input Sheet'!$C$16) -> 1500 | O59: 1.692587633e-07 | R59: 10 | S59: 121.190141 | T59: 184.0013136 | U59: 415.0727716 | V59: 109.180562 | W59: 159.8611967 | X59: 90.2615231 | Z59: =Spotřeba!R$113 -> 1790.2 | AB59: 1669.009859 | AC59: 1606.198686 | AD59: 1375.127228 | AE59: 1681.019438 | AF59: 1630.338803 | AG59: 1699.938477 | AH59: 10
B60: 2017-03-10T15:08:16 | C60: 7.2 | I60: 21 | K60: 7.727247132e-11 | N60: =GeneratedPower(I60, 'Input Sheet'!$C$16) -> 1500 | O60: 5.795435349e-08 | R60: 11 | S60: 154.3435268 | T60: 236.3880998 | U60: 535.7787321 | V60: 142.3483268 | W60: 205.7121517 | X60: 115.9923874 | Z60: =Spotřeba!S113 -> 1772.7 | AB60: 1618.356473 | AC60: 1536.3119 | AD60: 1236.921268 | AE60: 1630.351673 | AF60: 1566.987848 | AG60: 1656.707613 | AH60: 11
B61: 2017-03-10T15:18:16 | C61: 5.8 | I61: 21.5 | K61: 2.580420772e-11 | N61: =GeneratedPower(I61, 'Input Sheet'!$C$16) -> 1500 | O61: 1.935315579e-08 | R61: 12 | S61: 153.7781458 | T61: 235.483911 | U61: 533.6787779 | V61: 141.7689608 | W61: 204.9118307 | X61: 115.5444624 | Z61: =Spotřeba!T$113 -> 608.3666667 | AB61: 454.5885209 | AC61: 372.8827557 | AD61: 74.68788878 | AE61: 466.5977058 | AF61: 403.4548359 | AG61: 492.8222043 | AH61: 12
B62: 2017-03-10T15:28:16 | C62: 6.4 | I62: 22 | K62: 8.404562793e-12 | N62: =GeneratedPower(I62, 'Input Sheet'!$C$16) -> 1500 | O62: 6.303422094e-09 | R62: 13 | S62: 216.11646 | T62: 337.5094349 | U62: 774.7171179 | V62: 208.9700538 | W62: 297.4439376 | X62: 167.0024593 | Z62: =Spotřeba!U$113 -> 2262.7 | AB62: 2046.58354 | AC62: 1925.190565 | AD62: 1487.982882 | AE62: 2053.729946 | AF62: 1965.256062 | AG62: 2095.697541 | AH62: 13
B63: 2017-03-10T15:38:16 | C63: 10 | I63: 22.5 | K63: 2.670087521e-12 | N63: =GeneratedPower(I63, 'Input Sheet'!$C$16) -> 1500 | O63: 2.002565641e-09 | R63: 14 | S63: 265.6794193 | T63: 421.9478153 | U63: 980.6995856 | V63: 267.6931265 | W63: 377.629519 | X63: 211.023506 | Z63: =Spotřeba!V$113 -> 1143.95 | AB63: 878.2705807 | AC63: 722.0021847 | AD63: 163.2504144 | AE63: 876.2568735 | AF63: 766.320481 | AG63: 932.926494 | AH63: 14
B64: 2017-03-10T15:48:16 | C64: 5.6 | I64: 23 | K64: 8.274609114e-13 | N64: =GeneratedPower(I64, 'Input Sheet'!$C$16) -> 1500 | O64: 6.205956836e-10 | R64: 15 | S64: 261.5001901 | T64: 414.7173577 | U64: 962.8299012 | V64: 262.5479148 | W64: 370.6324848 | X64: 207.2033694 | Z64: =Spotřeba!W$113 -> 322.7 | AB64: 61.19980987 | AC64: -92.01735769 | AD64: -640.1299012 | AE64: 60.15208521 | AF64: -47.93248476 | AG64: 115.4966306 | AH64: 15
B65: 2017-03-10T15:58:16 | C65: 7.3 | E65: 0 | F65: =$G$43 -> 3.554975971 | I65: 23.5 | K65: 2.501531401e-13 | N65: =GeneratedPower(I65, 'Input Sheet'!$C$16) -> 1500 | O65: 1.876148551e-10 | R65: 16 | S65: 245.4778753 | T65: 387.1838591 | U65: 895.17753 | V65: 243.1570262 | W65: 344.212224 | X65: 192.7426208 | Z65: =Spotřeba!X$113 -> 667.7 | AB65: 422.2221247 | AC65: 280.5161409 | AD65: -227.47753 | AE65: 424.5429738 | AF65: 323.487776 | AG65: 474.9573792 | AH65: 16
B66: 2017-03-10T16:08:16 | C66: 7.7 | E66: 1 | F66: =$G$43 -> 3.554975971 | I66: 24 | K66: 7.377765668e-14 | N66: =GeneratedPower(I66, 'Input Sheet'!$C$16) -> 1500 | O66: 5.533324251e-11 | R66: 17 | S66: 259.8433765 | T66: 411.8564597 | U66: 955.7712326 | V66: 260.5182063 | W66: 367.8707103 | X66: 205.6944372 | Z66: =Spotřeba!Y$113 -> 1659.2 | AB66: 1399.356624 | AC66: 1247.34354 | AD66: 703.4287674 | AE66: 1398.681794 | AF66: 1291.32929 | AG66: 1453.505563 | AH66: 17
B67: 2017-03-10T16:18:16 | C67: 7.8 | E67: 2 | F67: 3.554975971 | I67: 24.5 | K67: 2.122888928e-14 | N67: =GeneratedPower(I67, 'Input Sheet'!$C$16) -> 1500 | O67: 1.592166696e-11 | R67: 18 | S67: 229.2873894 | T67: 359.6659752 | U67: 828.1925655 | V67: 224.0935375 | W67: 318.1619286 | X67: 178.4277054 | Z67: =Spotřeba!Z$113 -> 1497.3 | AB67: 1268.012611 | AC67: 1137.634025 | AD67: 669.1074345 | AE67: 1273.206462 | AF67: 1179.138071 | AG67: 1318.872295 | AH67: 18
B68: 2017-03-10T16:28:16 | C68: 7.5 | E68: 3 | F68: 3.554975971 | I68: 25 | K68: 5.959852252e-15 | N68: =GeneratedPower(I68, 'Input Sheet'!$C$16) -> 1500 | O68: 4.469889189e-12 | R68: 19 | S68: 141.4787976 | T68: 215.9082613 | U68: 488.3626702 | V68: 129.2881831 | W68: 187.6646533 | X68: 105.880629 | Z68: =Spotřeba!AA$113 -> 3421.55 | AB68: 3280.071202 | AC68: 3205.641739 | AD68: 2933.18733 | AE68: 3292.261817 | AF68: 3233.885347 | AG68: 3315.669371 | AH68: 19
B69: 2017-03-10T16:38:16 | C69: 5.6 | E69: 4 | F69: 3.554975971 | I69: 25.5 | K69: 1.632567181e-15 | N69: =GeneratedPower(I69, 'Input Sheet'!$C$16) -> 0 | O69: 0 | R69: 20 | S69: 87.89354394 | T69: 132.5893148 | U69: 298.2337448 | V69: 77.26740668 | W69: 115.7419639 | X69: 65.39636331 | Z69: =Spotřeba!AB$113 -> 1541.55 | AB69: 1453.656456 | AC69: 1408.960685 | AD69: 1243.316255 | AE69: 1464.282593 | AF69: 1425.808036 | AG69: 1476.153637 | AH69: 20
B70: 2017-03-10T16:48:16 | C70: 5.7 | E70: 5 | F70: 3.554975971 | I70: 26 | K70: 4.363699284e-16 | N70: =GeneratedPower(I70, 'Input Sheet'!$C$16) -> 0 | O70: 0 | R70: 21 | S70: 92.08004033 | T70: 138.9951681 | U70: 312.7227205 | V70: 81.21808553 | W70: 121.2008933 | X70: 68.47699377 | Z70: =Spotřeba!AC$113 -> 1055.675 | AB70: 963.5949597 | AC70: 916.6798319 | AD70: 742.9522795 | AE70: 974.4569145 | AF70: 934.4741067 | AG70: 987.1980062 | AH70: 21
B71: 2017-03-10T16:58:16 | C71: 5.6 | E71: 6 | F71: 3.554975971 | I71: 26.5 | K71: 1.138169457e-16 | N71: =GeneratedPower(I71, 'Input Sheet'!$C$16) -> 0 | O71: 0 | R71: 22 | S71: 74.74443285 | T71: 112.5614859 | U71: 253.0285906 | V71: 64.95094893 | W71: 98.7297697 | X71: 55.79100529 | Z71: =Spotřeba!AD$113 -> 157.075 | AB71: 82.33056715 | AC71: 44.51351409 | AD71: -95.95359055 | AE71: 92.12405107 | AF71: 58.3452303 | AG71: 101.2839947 | AH71: 22
B72: 2017-03-10T17:08:16 | C72: 8.2 | E72: 7 | F72: 3.554975971 | I72: 27 | K72: 2.896989717e-17 | N72: =GeneratedPower(I72, 'Input Sheet'!$C$16) -> 0 | O72: 0 | R72: 23 | S72: 45.1217438 | T72: 67.81821974 | U72: 152.3649332 | V72: 37.60482766 | W72: 60.93181991 | X72: 34.43489779 | Z72: =Spotřeba!AE$113 -> 72.7 | AB72: 27.5782562 | AC72: 4.881780259 | AD72: -79.6649332 | AE72: 35.09517234 | AF72: 11.76818009 | AG72: 38.26510221 | AH72: 23
B73: 2017-03-10T17:18:16 | C73: 4.9 | E73: 8 | F73: 3.554975971 | I73: 27.5 | K73: 7.196044845e-18 | N73: =GeneratedPower(I73, 'Input Sheet'!$C$16) -> 0 | O73: 0
B74: 2017-03-10T17:28:16 | C74: 6.3 | E74: 9 | F74: 3.554975971 | I74: 28 | K74: 1.744480273e-18 | N74: =GeneratedPower(I74, 'Input Sheet'!$C$16) -> 0 | O74: 0 | R74: během léta [kWh] | S74: =SUM(S49:S73)*215/1000 -> 609.2506925 | T74: =SUM(T49:T73)*215/1000 -> 943.0226112 | U74: 2155.549337 | V74: 571.4894309 | W74: 834.9319994 | X74: 469.2872589 | Z74: Denně nespotřebováno | AB74: =-SUMIFS(AB49:AB72,AB49:AB72,"<0") -> 0.9538566781 | AC74: 128.2621912 | AD74: 1399.577943 | AE74: 0 | AF74: 67.89524549 | AG74: 0 | AH74: Wh
B75: 2017-03-10T17:38:16 | C75: 5.4 | E75: 10 | F75: 3.554975971 | I75: 28.5 | K75: 4.127446452e-19 | N75: =GeneratedPower(I75, 'Input Sheet'!$C$16) -> 0 | O75: 0 | R75: % využito | S75: =S74*10^3/('Input Sheet'!$D$18*215*24) -> 0.09839319969 | T75: =T74*10^3/('Input Sheet'!$D$18*215*24) -> 0.1522969333 | U75: =U74*10^3/('Input Sheet'!$D$18*215*24) -> 0.348118433 | V75: =V74*10^3/('Input Sheet'!$D$18*215*24) -> 0.09229480474 | W75: =W74*10^3/('Input Sheet'!$D$18*215*24) -> 0.1348404392 | X75: =X74*10^3/('Input Sheet'!$D$18*215*24) -> 0.07578928601 | Z75: V létě nespotřebováno | AB75: =AB74*215/1000 -> 0.2050791858 | AC75: =AC74*215/1000 -> 27.5763711 | AD75: 300.9092577 | AE75: 0 | AF75: 14.59747778 | AG75: =AG74*365/1000 -> 0 | AH75: kWh
B76: 2017-03-10T17:48:16 | C76: 5.5 | E76: 11 | F76: 3.554975971 | I76: 29 | K76: 9.531415661e-20 | N76: =GeneratedPower(I76, 'Input Sheet'!$C$16) -> 0 | O76: 0 | Z76: Z letní gener. Energie | AB76: =AB75/S74 -> 0.0003366088678 | AC76: =AC75/T74 -> 0.02924253435 | AD76: =AD75/U74 -> 0.1395974811 | AE76: =AE75/V74 -> 0 | AF76: =AF75/W74 -> 0.01748343313 | AG76: =AG75/X74 -> 0
B77: 2017-03-10T17:58:16 | C77: 5 | E77: 12 | F77: 3.554975971 | I77: 29.5 | K77: 2.148378866e-20 | N77: =GeneratedPower(I77, 'Input Sheet'!$C$16) -> 0 | O77: 0
B78: 2017-03-10T18:08:16 | C78: 3.5 | E78: 13 | F78: 3.554975971 | I78: 30 | K78: =_xlfn.WEIBULL.DIST(I78,$C$7,$C$6,0) -> 4.726702968e-21 | N78: =GeneratedPower(I78, 'Input Sheet'!$C$16) -> 0 | O78: 0
B79: 2017-03-10T18:18:16 | C79: 2.1 | E79: 14 | F79: 3.554975971 | L79: Generated el. Energy Daily | O79: =SUM(O18:O78)*24 -> 1873.271003 | P79: Wh
B80: 2017-03-10T18:28:16 | C80: 1.9 | E80: 15 | F80: 3.554975971 | L80: Generated el. Energy Yearly | O80: =O79*365*10^-3 -> 683.7439162 | P80: kWh
B81: 2017-03-10T18:38:16 | C81: 1 | E81: 16 | F81: 3.554975971 | P81: kW
B82: 2017-03-10T18:48:16 | C82: 0.6 | E82: 17 | F82: 3.554975971
B83: 2017-03-10T18:58:16 | C83: 2.5 | E83: 18 | F83: 3.554975971
B84: 2017-03-10T19:08:16 | C84: 2.2 | E84: 19 | F84: 3.554975971
B85: 2017-03-10T19:18:16 | C85: 2.5 | E85: 20 | F85: 3.554975971
B86: 2017-03-10T19:28:16 | C86: 2.8 | E86: 21 | F86: 3.554975971
B87: 2017-03-10T19:38:16 | C87: 2.6 | E87: 22 | F87: 3.554975971
B88: 2017-03-10T19:48:16 | C88: 2.3 | E88: 23 | F88: 3.554975971
B89: 2017-03-10T19:58:16 | C89: 1.7
B90: 2017-03-10T20:08:16 | C90: 1.9
B91: 2017-03-10T20:18:16 | C91: 2
B92: 2017-03-10T20:28:16 | C92: 2.1
B93: 2017-03-10T20:38:16 | C93: 2.4
B94: 2017-03-10T20:48:16 | C94: 2.6
B95: 2017-03-10T20:58:16 | C95: 3.1
B96: 2017-03-10T21:08:16 | C96: 3.9
B97: 2017-03-10T21:18:16 | C97: 4.3
B98: 2017-03-10T21:28:16 | C98: 3.3
B99: 2017-03-10T21:38:16 | C99: 2.9
B100: 2017-03-10T21:48:16 | C100: 3
B101: 2017-03-10T21:58:16 | C101: 2.1
B102: 2017-03-10T22:08:16 | C102: 2.3
B103: 2017-03-10T22:18:16 | C103: 2.7
B104: 2017-03-10T22:28:16 | C104: 2.7
B105: 2017-03-10T22:38:16 | C105: 3.6
B106: 2017-03-10T22:48:16 | C106: 4.6
B107: 2017-03-10T22:58:16 | C107: 3.8
B108: 2017-03-10T23:08:16 | C108: 3.2
B109: 2017-03-10T23:18:16 | C109: 2.7
B110: 2017-03-10T23:28:16 | C110: 3.6
B111: 2017-03-10T23:38:16 | C111: 3.7
B112: 2017-03-10T23:48:16 | C112: 2.5
B113: 2017-03-10T23:58:16 | C113: 2.7
B114: 2017-03-11T00:08:16 | C114: 4
B115: 2017-03-11T00:18:16 | C115: 3.3
B116: 2017-03-11T00:28:16 | C116: 3.9
B117: 2017-03-11T00:38:16 | C117: 3.2
B118: 2017-03-11T00:48:16 | C118: 2.7
B119: 2017-03-11T00:58:16 | C119: 2.9
B120: 2017-03-11T01:08:16 | C120: 2.9
B121: 2017-03-11T01:18:16 | C121: 4.9
B122: 2017-03-11T01:28:16 | C122: 3.2
B123: 2017-03-11T01:38:16 | C123: 2.5
B124: 2017-03-11T01:48:16 | C124: 2.6
B125: 2017-03-11T01:58:16 | C125: 2.5
B126: 2017-03-11T02:08:16 | C126: 2
B127: 2017-03-11T02:18:16 | C127: 2.5
B128: 2017-03-11T02:28:16 | C128: 2.5
B129: 2017-03-11T02:38:16 | C129: 2.5
B130: 2017-03-11T02:48:16 | C130: 1.5
B131: 2017-03-11T02:58:16 | C131: 2.4
B132: 2017-03-11T03:08:16 | C132: 2.7
B133: 2017-03-11T03:18:16 | C133: 2.6
B134: 2017-03-11T03:28:16 | C134: 2.6
B135: 2017-03-11T03:38:16 | C135: 2.2
B136: 2017-03-11T03:48:16 | C136: 2.3
B137: 2017-03-11T03:58:16 | C137: 3.8
B138: 2017-03-11T04:08:16 | C138: 2.6
B139: 2017-03-11T04:18:16 | C139: 1.7
B140: 2017-03-11T04:28:16 | C140: 2.6
B141: 2017-03-11T04:38:16 | C141: 2
B142: 2017-03-11T04:48:16 | C142: 3
B143: 2017-03-11T04:58:16 | C143: 2.2
B144: 2017-03-11T05:08:16 | C144: 3.3
B145: 2017-03-11T05:18:16 | C145: 2.5
B146: 2017-03-11T05:28:16 | C146: 1.7
B147: 2017-03-11T05:38:16 | C147: 3
B148: 2017-03-11T05:48:16 | C148: 3.1
B149: 2017-03-11T05:58:16 | C149: 2.4
B150: 2017-03-11T06:08:16 | C150: 2.4
B151: 2017-03-11T06:18:16 | C151: 2.6
B152: 2017-03-11T06:28:16 | C152: 2.4
B153: 2017-03-11T06:38:16 | C153: 1.6
B154: 2017-03-11T06:48:16 | C154: 1.1
B155: 2017-03-11T06:58:16 | C155: 3.1
B156: 2017-03-11T07:08:16 | C156: 1.7
B157: 2017-03-11T07:18:16 | C157: 2
B158: 2017-03-11T07:28:16 | C158: 1.9
B159: 2017-03-11T07:38:16 | C159: 1.3
B160: 2017-03-11T07:48:16 | C160: 1.6
B161: 2017-03-11T07:58:16 | C161: 1.6
B162: 2017-03-11T08:08:16 | C162: 2.3
B163: 2017-03-11T08:18:16 | C163: 1.8
B164: 2017-03-11T08:28:16 | C164: 2.2
B165: 2017-03-11T08:38:16 | C165: 1.9
B166: 2017-03-11T08:48:16 | C166: 2.3
B167: 2017-03-11T08:58:16 | C167: 3.9
B168: 2017-03-11T09:08:16 | C168: 2.6
B169: 2017-03-11T09:18:16 | C169: 3.2
B170: 2017-03-11T09:28:16 | C170: 3.1
B171: 2017-03-11T09:38:16 | C171: 1.9
B172: 2017-03-11T09:48:16 | C172: 1.7
B173: 2017-03-11T09:58:16 | C173: 3.6
B174: 2017-03-11T10:08:16 | C174: 2.3
B175: 2017-03-11T10:18:16 | C175: 3.3
B176: 2017-03-11T10:28:16 | C176: 2.5
B177: 2017-03-11T10:38:16 | C177: 2.2
B178: 2017-03-11T10:48:16 | C178: 2.5
B179: 2017-03-11T10:58:16 | C179: 4.2
B180: 2017-03-11T11:08:16 | C180: 4.7
B181: 2017-03-11T11:18:16 | C181: 3.1
B182: 2017-03-11T11:28:16 | C182: 3.3
B183: 2017-03-11T11:38:16 | C183: 3.4
B184: 2017-03-11T11:48:16 | C184: 2.9
B185: 2017-03-11T11:58:16 | C185: 4.7
B186: 2017-03-11T12:08:16 | C186: 0.6
B187: 2017-03-11T12:18:16 | C187: 2.3
B188: 2017-03-11T12:28:16 | C188: 1.8
B189: 2017-03-11T12:38:16 | C189: 3
B190: 2017-03-11T12:48:16 | C190: 3.8
B191: 2017-03-11T12:58:16 | C191: 2.7
B192: 2017-03-11T13:08:16 | C192: 4.5
B193: 2017-03-11T13:18:16 | C193: 3.3
B194: 2017-03-11T13:28:16 | C194: 5.7
B195: 2017-03-11T13:38:16 | C195: 6.6
B196: 2017-03-11T13:48:16 | C196: 4
B197: 2017-03-11T13:58:16 | C197: 3.8
B198: 2017-03-11T14:08:16 | C198: 3.9
B199: 2017-03-11T14:18:16 | C199: 2.8
B200: 2017-03-11T14:28:16 | C200: 4.6
B201: 2017-03-11T14:38:16 | C201: 3.1
B202: 2017-03-11T14:48:16 | C202: 4.2
B203: 2017-03-11T14:58:16 | C203: 2.8
B204: 2017-03-11T15:08:16 | C204: 3
B205: 2017-03-11T15:18:16 | C205: 3.1
... 2632 more rows

Sheet Baterie
B2: Sešit pro výpočet ceny za baterie
E10: Potřebná baterie
E11: AP1200 | F11: AP2400 | G11: AP7 | H11: SKYSTREAM 3.7 | I11: HY-3000L 5BLADE | J11: HY-1500L 5BLADE
B13: Potřebná kapacita [Wh] | E13: =-('Site SWT'!AB64) -> -61.19980987 | F13: =-('Site SWT'!AC64) -> 92.01735769 | G13: =-('Site SWT'!AD64+'Site SWT'!AD65) -> 867.6074313 | H13: =-('Site SWT'!AE64) -> -60.15208521 | I13: =-('Site SWT'!AF64) -> 47.93248476 | J13: =-('Site SWT'!AG64) -> -115.4966306 | L13: ročně generováno energie | O13: 1500
B14: Kapacita 12V baterie [Ah] | F14: 8 | G14: 72 | I14: 4 | L14: cena baterie | O14: =O13*N31+N32 -> 1296.812492
B15: cena [Kč] | F15: 543 | G15: 6716 | I15: 360
B16: životnost [let] | F16: 10 | G16: 10 | I16: 10
B17: cena celkem [Kč] | F17: 1629 | G17: 20148 | I17: 1080
B18: generováno el. Energie [kWh] | E18: ='Site SWT'!S42+'Site SWT'!S74 -> 1034.309315 | F18: ='Site SWT'!T42+'Site SWT'!T74 -> 1600.945363 | G18: ='Site SWT'!U42+'Site SWT'!U74 -> 3659.420967 | H18: ='Site SWT'!V42+'Site SWT'!V74 -> 970.2029874 | I18: ='Site SWT'!W42+'Site SWT'!W74 -> 1417.442697 | J18: ='Site SWT'!X42+'Site SWT'!X74 -> 796.6969745
E19: 99.9 | F19: 97 | G19: 86.7 | H19: 100 | I19: 98.2 | J19: 100
E20: Přehled sledovaných baterií
E21: kapacita [Ah] | F21: cena | G21: cena x3
E22: 18 | F22: 1380 | G22: =F22*3 -> 4140
E23: 33 | F23: 2542 | G23: =F23*3 -> 7626
E24: 55 | F24: 4111 | G24: 12333
E25: 70 | F25: 5084 | G25: 15252
E26: 100 | F26: 6841 | G26: 20523
E27: 135 | F27: 9351 | G27: 28053
E28: 200 | F28: 12834 | G28: 38502
M31: směrnice: | N31: =SLOPE(F17:I17,F18:I18) -> 8.709010885
M32: x = 0 | N32: =INTERCEPT(F17:I17,F18:I18) -> -11766.70384 | O32: Kč
M33: y=0
M34: kapacita | N34: 4000
M35: Cena | N35: =N34*N31+N32 -> 23069.33971

Sheet CashFlow
A2: Finanční výpočty - Cash Flow
D3: výkupní cena | E3: Zel. bonus | F3: Zel. bonus + AKU
C4: NPV | D4: =NPV(E29,F47:AI47) + E47 -> -111917.8741 | E4: =NPV(E29,F64:AJ64) + E64 -> -101352.1496 | F4: =NPV(E29,F82:AI82) + E82 -> -101352.1496
C5: IRR | D5: =IRR(E47:AI47) -> -0.0914184897
C7: Parametr | E7: Hodnota | F7: Jednotky | J7: Větrné elektrárny
C8: Jmenovitý výkon elektrárny | J8: AP1200 | K8: AP2400 | L8: AP7 | M8: SKYSTREAM 3.7 | N8: HY-3000L 5BLADE | O8: HY-1500L 5BLADE
C9: Generováno elektrické energie | E9: =IF($E$31=1,$J$10,IF($E$31=2,$K$10,IF($E$31=3,$L$10,IF($E$31=4,$M$10,IF($E$31=5,$N$10,IF($E$31=6,$O$10,)))))) -> 796.6969745 | F9: kWh/rok
C10: Efektivita Regulatoru | E10: =IF(ISBLANK('Input Sheet'!D38), 100%, 'Input Sheet'!D38) -> 0.95 | H10: za rok | J10: ='Site SWT'!S42+'Site SWT'!S74 -> 1034.309315 | K10: ='Site SWT'!T42+'Site SWT'!T74 -> 1600.945363 | L10: ='Site SWT'!U42+'Site SWT'!U74 -> 3659.420967 | M10: ='Site SWT'!V42+'Site SWT'!V74 -> 970.2029874 | N10: ='Site SWT'!W42+'Site SWT'!W74 -> 1417.442697 | O10: ='Site SWT'!X42+'Site SWT'!X74 -> 796.6969745 | P10: kWh
C11: Energie celkem | E11: =E9*E10 -> 756.8621258 | F11: kWh/rok | H11: Ročně do DS | J11: ='Site SWT'!AB43 + 'Site SWT'!AB75 -> 0.6548226153 | K11: ='Site SWT'!AC43 + 'Site SWT'!AC75 -> 38.99231901 | L11: ='Site SWT'!AD43 + 'Site SWT'!AD75 -> 393.3610845 | M11: ='Site SWT'!AE43 + 'Site SWT'!AE75 -> 0 | N11: ='Site SWT'!AF43 + 'Site SWT'!AF75 -> 21.49635735 | O11: ='Site SWT'!AG43 + 'Site SWT'!AG75 -> 0 | P11: kWh
C12: Každoroční opotřebení | E12: =VlastnostMVE(E31,'Input Sheet'!C25) -> 0.005 | F12: ročně | H12: Ušetřeno energie | J12: =J10-J11 -> 1033.654493 | K12: 1561.953044 | L12: 3266.059883 | M12: 970.2029874 | N12: 1395.946339 | O12: 796.6969745 | P12: kWh
C13: Ušetřeno energie ze spotřeby | E13: =G13*E11 -> 756.8621258 | F13: kWh/rok | G13: =IF($E$31=1,J13,IF($E$31=2,K13,IF($E$31=3,L13,IF($E$31=4,M13,IF($E$31=5,N13,IF($E$31=6,O13,)))))) -> 1 | H13: Ušetřeno/generováno | J13: =J12/J10 -> 0.9993668987 | K13: 0.9756441913 | L13: 0.8925072879 | M13: 1 | N13: 0.9848344082 | O13: 1
H14: Baterie cena [Kč] | K14: 1629 | L14: 20148 | N14: 1080
C15: Variabilní náklady | E15: =VlastnostMVE($E$31,'Input Sheet'!C29) -> 1077.8 | F15: Kč
C16: Procentuální růst var. nákladů | E16: =VlastnostMVE(E31,'Input Sheet'!C30) -> 0.005 | F16: ročně
C17: Životnost MVtE | E17: =VlastnostMVE($E$31,'Input Sheet'!C26) -> 30 | F17: let
C18: Zvyšování ceny elektřiny | E18: 0.02
C19: Platba za spotřebu el. Energie | E19: ='Input Sheet'!D62*10^-3 -> 1.779324739 | F19: Kč/kWh
C21: Zelený bonus | E21: ='Input Sheet'!D60*10^-3 -> 1.43 | F21: Kč/kWh
C22: Doba trvání zeleného bonusu | E22: ='Input Sheet'!D61 -> 20 | F22: ročně
C24: Investiční náklady | E24: ='Input Sheet'!D47 -> 121339 | F24: Kč
C25: Cena akumulatoru | E25: =IF(G25>1600, G25,0) -> 0 | F25: Kč | G25: =E9*Baterie!N31+Baterie!N32 -> -4828.261213
C26: Splaceno při uvedení do provozu | E26: =ChooseFinancing('Input Sheet'!$C$52,'Input Sheet'!C53) -> 1
C27: Úrok | E27: =ChooseFinancing('Input Sheet'!$C$52,'Input Sheet'!C54) -> 0 | F27: ročně
C28: Doba Splacení závazku | E28: =ChooseFinancing('Input Sheet'!$C$52,'Input Sheet'!C55) -> 0 | F28: let
C29: Diskont | E29: ='Input Sheet'!D56 -> 0.05
C30: Výkupní cena | E30: ='Input Sheet'!D63/1000 -> 1.93 | F30: Kč/kWh
C31: Vybraná elektrárna | E31: ='Input Sheet'!C16 -> 6
C33: Výkupní cena
E34: 0 | F34: 1 | G34: 2 | H34: 3 | I34: 4 | J34: 5 | K34: 6 | L34: 7 | M34: 8 | N34: 9 | O34: 10 | P34: 11 | Q34: 12 | R34: 13 | S34: 14 | T34: 15 | U34: 16 | V34: 17 | W34: 18 | X34: 19 | Y34: 20 | Z34: 21 | AA34: 22 | AB34: 23 | AC34: 24 | AD34: 25 | AE34: 26 | AF34: 27 | AG34: 28 | AH34: 29 | AI34: 30
C35: Příjmy
C36: Generováno elektrické energie | F36: =IF(F34<=$E$17,$E$9*(1-$E$12)^(F34-1),0) -> 796.6969745 | G36: =IF(G34<=$E$17,$E$9*(1-$E$12)^(G34-1),0) -> 792.7134896 | H36: 788.7499222 | I36: 784.8061726 | J36: 780.8821417 | K36: 776.977731 | L36: 773.0928423 | M36: 769.2273781 | N36: 765.3812412 | O36: 761.554335 | P36: 757.7465634 | Q36: 753.9578305 | R36: 750.1880414 | S36: 746.4371012 | T36: 742.7049157 | U36: 738.9913911 | V36: 735.2964341 | W36: 731.619952 | X36: 727.9618522 | Y36: 724.3220429 | Z36: 720.7004327 | AA36: 717.0969306 | AB36: 713.5114459 | AC36: 709.9438887 | AD36: 706.3941692 | AE36: 702.8621984 | AF36: 699.3478874 | AG36: 695.851148 | AH36: 692.3718922 | AI36: 688.9100328
C37: Ušetřeno na výdajích | F37: 0 | G37: 0 | H37: 0 | I37: 0 | J37: 0 | K37: 0 | L37: 0 | M37: 0 | N37: 0 | O37: 0 | P37: 0 | Q37: 0 | R37: 0 | S37: 0 | T37: 0 | U37: 0 | V37: 0 | W37: 0 | X37: 0 | Y37: 0 | Z37: =$E$19*$E$13*(1-$E$12)^(Z34-1)*(1+$E$18)^(Z34-1)*$E$10 -> 1719.731498 | AA37: =$E$19*$E$13*(1-$E$12)^(AA34-1)*(1+$E$18)^(AA34-1)*$E$10 -> 1745.355498 | AB37: 1771.361294 | AC37: 1797.754578 | AD37: 1824.541121 | AE37: 1851.726784 | AF37: 1879.317513 | AG37: 1907.319344 | AH37: 1935.738402 | AI37: 1964.580904
C38: Výkupní cena | F38: =IF($E$22>=F34, $E$30*F36*1.02^(F34-1), 0) -> 1537.625161 | G38: =IF($E$22>=G34, $E$30*G36*1.02^(G34-1), 0) -> 1560.535776 | H38: =IF($E$22>=H34, $E$30*H36*1.02^(H34-1), 0) -> 1583.787759 | I38: 1607.386196 | J38: 1631.336251 | K38: 1655.643161 | L38: 1680.312244 | M38: 1705.348896 | N38: 1730.758595 | O38: 1756.546898 | P38: 1782.719447 | Q38: 1809.281966 | R38: 1836.240268 | S38: 1863.600248 | T38: 1891.367891 | U38: 1919.549273 | V38: 1948.150557 | W38: 1977.178001 | X38: 2006.637953 | Y38: 2036.536858 | Z38: =IF($E$22>=Z34, $E$21*Z36, 0) -> 0 | AA38: 0 | AB38: 0 | AC38: 0 | AD38: 0 | AE38: 0 | AF38: 0 | AG38: 0 | AH38: 0 | AI38: 0
C39: Celkový příjem z provozu | F39: =F37+F38 -> 1537.625161 | G39: =G37+G38 -> 1560.535776 | H39: 1583.787759 | I39: 1607.386196 | J39: 1631.336251 | K39: 1655.643161 | L39: 1680.312244 | M39: 1705.348896 | N39: 1730.758595 | O39: 1756.546898 | P39: 1782.719447 | Q39: 1809.281966 | R39: 1836.240268 | S39: 1863.600248 | T39: 1891.367891 | U39: 1919.549273 | V39: 1948.150557 | W39: 1977.178001 | X39: 2006.637953 | Y39: 2036.536858 | Z39: 1719.731498 | AA39: 1745.355498 | AB39: 1771.361294 | AC39: 1797.754578 | AD39: 1824.541121 | AE39: 1851.726784 | AF39: 1879.317513 | AG39: 1907.319344 | AH39: 1935.738402 | AI39: 1964.580904
C41: Výdaje
C42: Splaceno | E42: =$E$24*$E$26 -> 121339
C43: Půjčka | E43: =$E$24-$E$42 -> 0
C44: úmor | F44: =IF($E$28>=F34,-PPMT($E$27,F34,$E$28,$E$43),0) -> 0 | G44: =IF($E$28>=G34,-PPMT($E$27,G34,$E$28,$E$43),0) -> 0 | H44: =IF($E$28>=H34,-PPMT($E$27,H34,$E$28,$E$43),0) -> 0 | I44: 0 | J44: 0 | K44: 0 | L44: 0 | M44: 0 | N44: 0 | O44: 0 | P44: 0 | Q44: 0 | R44: 0 | S44: 0 | T44: 0 | U44: 0 | V44: 0 | W44: 0 | X44: 0 | Y44: 0 | Z44: 0 | AA44: 0 | AB44: 0 | AC44: 0 | AD44: 0 | AE44: 0 | AF44: 0 | AG44: 0 | AH44: 0 | AI44: 0
C45: úrok | F45: =IF($E$28>=F34,-PMT($E$27,$E$28,$E$43)-F44,0) -> 0 | G45: =IF($E$28>=G34,-PMT($E$27,$E$28,$E$43)-G44,0) -> 0 | H45: =IF($E$28>=H34,-PMT($E$27,$E$28,$E$43)-H44,0) -> 0 | I45: =IF($E$28>=I34,-PMT($E$27,$E$28,$E$43)-I44,0) -> 0 | J45: 0 | K45: 0 | L45: 0 | M45: 0 | N45: 0 | O45: 0 | P45: 0 | Q45: 0 | R45: 0 | S45: 0 | T45: 0 | U45: 0 | V45: 0 | W45: 0 | X45: 0 | Y45: 0 | Z45: 0 | AA45: 0 | AB45: 0 | AC45: 0 | AD45: 0 | AE45: 0 | AF45: 0 | AG45: 0 | AH45: 0 | AI45: 0
C46: variabilní náklady | F46: =$E$15*(1+$E$16)^(F34-1) -> 1077.8 | G46: =$E$15*(1+$E$16)^(G34-1) -> 1083.189 | H46: =$E$15*(1+$E$16)^(H34-1) -> 1088.604945 | I46: 1094.04797 | J46: 1099.51821 | K46: 1105.015801 | L46: 1110.54088 | M46: 1116.093584 | N46: 1121.674052 | O46: 1127.282422 | P46: 1132.918834 | Q46: 1138.583428 | R46: 1144.276346 | S46: 1149.997727 | T46: 1155.747716 | U46: 1161.526455 | V46: 1167.334087 | W46: 1173.170757 | X46: 1179.036611 | Y46: 1184.931794 | Z46: 1190.856453 | AA46: 1196.810735 | AB46: 1202.794789 | AC46: 1208.808763 | AD46: 1214.852807 | AE46: 1220.927071 | AF46: 1227.031706 | AG46: 1233.166865 | AH46: 1239.332699 | AI46: 1245.529363
C47: net CF | E47: =-E42 -> -121339 | F47: =F39-F46-F45-F44 -> 459.8251608 | G47: =G39-G46-G45-G44 -> 477.3467757 | H47: =H39-H46-H45-H44 -> 495.1828137 | I47: 513.3382266 | J47: 531.8180411 | K47: 550.6273602 | L47: 569.7713643 | M47: 589.2553123 | N47: 609.0845429 | O47: 629.2644757 | P47: 649.8006124 | Q47: 670.698538 | R47: 691.9639221 | S47: 713.6025204 | T47: 735.6201755 | U47: 758.0228185 | V47: 780.8164704 | W47: 804.0072432 | X47: 827.6013416 | Y47: 851.6050641 | Z47: 528.8750452 | AA47: 548.5447622 | AB47: 568.5665054 | AC47: 588.9458148 | AD47: 609.6883142 | AE47: 630.7997129 | AF47: 652.2858066 | AG47: 674.152479 | AH47: 696.4057029 | AI47: 719.0515416
C48: součet CF | E48: =E47 -> -121339 | F48: =E48+F47 -> -120879.1748 | G48: -120401.8281 | H48: -119906.6452 | I48: -119393.307 | J48: -118861.489 | K48: -118310.8616 | L48: -117741.0903 | M48: -117151.8349 | N48: -116542.7504 | O48: -115913.4859 | P48: -115263.6853 | Q48: -114592.9868 | R48: -113901.0229 | S48: -113187.4203 | T48: -112451.8002 | U48: -111693.7773 | V48: -110912.9609 | W48: -110108.9536 | X48: -109281.3523 | Y48: -108429.7472 | Z48: -107900.8722 | AA48: -107352.3274 | AB48: -106783.7609 | AC48: -106194.8151 | AD48: -105585.1268 | AE48: -104954.3271 | AF48: -104302.0413 | AG48: -103627.8888 | AH48: -102931.4831 | AI48: -102212.4315
C50: Zelený bonus
E51: 0 | F51: 1 | G51: 2 | H51: 3 | I51: 4 | J51: 5 | K51: 6 | L51: 7 | M51: 8 | N51: 9 | O51: 10 | P51: 11 | Q51: 12 | R51: 13 | S51: 14 | T51: 15 | U51: 16 | V51: 17 | W51: 18 | X51: 19 | Y51: 20 | Z51: 21 | AA51: 22 | AB51: 23 | AC51: 24 | AD51: 25 | AE51: 26 | AF51: 27 | AG51: 28 | AH51: 29 | AI51: 30
C52: Příjmy
C53: Generováno elektrické energie | F53: =IF(F51<=$E$17,$E$11*(1-$E$12)^(F51-1),0) -> 756.8621258 | G53: =IF(G51<=$E$17,$E$11*(1-$E$12)^(G51-1),0) -> 753.0778151 | H53: 749.3124261 | I53: 745.5658639 | J53: 741.8380346 | K53: 738.1288444 | L53: 734.4382002 | M53: 730.7660092 | N53: 727.1121792 | O53: 723.4766183 | P53: 719.8592352 | Q53: 716.259939 | R53: 712.6786393 | S53: 709.1152461 | T53: 705.5696699 | U53: 702.0418215 | V53: 698.5316124 | W53: 695.0389544 | X53: 691.5637596 | Y53: 688.1059408 | Z53: 684.6654111 | AA53: 681.242084 | AB53: 677.8358736 | AC53: 674.4466942 | AD53: 671.0744608 | AE53: 667.7190885 | AF53: 664.380493 | AG53: 661.0585906 | AH53: 657.7532976 | AI53: 654.4645311
C54: Ušetřeno na výdajích | F54: =$E$19*$E$13*(1-$E$12)^(F51-1)*(1+$E$18)^(F51-1) -> 1346.703505 | G54: =$E$19*$E$13*(1-$E$12)^(G51-1)*(1+$E$18)^(G51-1) -> 1366.769387 | H54: 1387.134251 | I54: 1407.802551 | J54: 1428.778809 | K54: 1450.067613 | L54: 1471.673621 | M54: 1493.601558 | N54: 1515.856221 | O54: 1538.442479 | P54: 1561.365272 | Q54: 1584.629614 | R54: 1608.240595 | S54: 1632.20338 | T54: 1656.523211 | U54: 1681.205406 | V54: 1706.255367 | W54: 1731.678572 | X54: 1757.480583 | Y54: 1783.667043 | Z54: 1810.243682 | AA54: 1837.216313 | AB54: 1864.590836 | AC54: 1892.37324 | AD54: 1920.569601 | AE54: 1949.186088 | AF54: 1978.228961 | AG54: 2007.704572 | AH54: 2037.61937 | AI54: 2067.979899
C55: Zelený bonus | F55: =IF($E$22>=F51, $E$21*F53, 0) -> 1082.31284 | G55: =IF($E$22>=G51, $E$21*G53, 0) -> 1076.901276 | H55: 1071.516769 | I55: 1066.159185 | J55: 1060.828389 | K55: 1055.524248 | L55: 1050.246626 | M55: 1044.995393 | N55: 1039.770416 | O55: 1034.571564 | P55: 1029.398706 | Q55: 1024.251713 | R55: 1019.130454 | S55: 1014.034802 | T55: 1008.964628 | U55: 1003.919805 | V55: 998.9002058 | W55: 993.9057047 | X55: 988.9361762 | Y55: 983.9914953 | Z55: 0 | AA55: 0 | AB55: 0 | AC55: 0 | AD55: 0 | AE55: 0 | AF55: 0 | AG55: 0 | AH55: 0 | AI55: 0
C56: Celkový příjem z provozu | F56: =F54+F55 -> 2429.016345 | G56: =G54+G55 -> 2443.670663 | H56: 2458.65102 | I56: 2473.961737 | J56: 2489.607199 | K56: 2505.591861 | L56: 2521.920247 | M56: 2538.596951 | N56: 2555.626637 | O56: 2573.014043 | P56: 2590.763978 | Q56: 2608.881327 | R56: 2627.37105 | S56: 2646.238182 | T56: 2665.487839 | U56: 2685.125211 | V56: 2705.155573 | W56: 2725.584277 | X56: 2746.416759 | Y56: 2767.658539 | Z56: 1810.243682 | AA56: 1837.216313 | AB56: 1864.590836 | AC56: 1892.37324 | AD56: 1920.569601 | AE56: 1949.186088 | AF56: 1978.228961 | AG56: 2007.704572 | AH56: 2037.61937 | AI56: 2067.979899
C58: Výdaje
C59: Splaceno | E59: =$E$24*$E$26 -> 121339
C60: Půjčka | E60: =$E$24-$E$59 -> 0
C61: úmor | F61: =IF($E$28>=F51,-PPMT($E$27,F51,$E$28,$E$43),0) -> 0 | G61: =IF($E$28>=G51,-PPMT($E$27,G51,$E$28,$E$43),0) -> 0 | H61: =IF($E$28>=H51,-PPMT($E$27,H51,$E$28,$E$43),0) -> 0 | I61: 0 | J61: 0 | K61: 0 | L61: 0 | M61: 0 | N61: 0 | O61: 0 | P61: 0 | Q61: 0 | R61: 0 | S61: 0 | T61: 0 | U61: 0 | V61: 0 | W61: 0 | X61: 0 | Y61: 0 | Z61: 0 | AA61: 0 | AB61: 0 | AC61: 0 | AD61: 0 | AE61: 0 | AF61: 0 | AG61: 0 | AH61: 0 | AI61: 0
C62: úrok | F62: =IF($E$28>=F51,-PMT($E$27,$E$28,$E$43)-F61,0) -> 0 | G62: =IF($E$28>=G51,-PMT($E$27,$E$28,$E$43)-G61,0) -> 0 | H62: =IF($E$28>=H51,-PMT($E$27,$E$28,$E$43)-H61,0) -> 0 | I62: =IF($E$28>=I51,-PMT($E$27,$E$28,$E$43)-I61,0) -> 0 | J62: 0 | K62: 0 | L62: 0 | M62: 0 | N62: 0 | O62: 0 | P62: 0 | Q62: 0 | R62: 0 | S62: 0 | T62: 0 | U62: 0 | V62: 0 | W62: 0 | X62: 0 | Y62: 0 | Z62: 0 | AA62: 0 | AB62: 0 | AC62: 0 | AD62: 0 | AE62: 0 | AF62: 0 | AG62: 0 | AH62: 0 | AI62: 0
C63: variabilní náklady | F63: =$E$15*(1+$E$16)^(F51-1) -> 1077.8 | G63: =$E$15*(1+$E$16)^(G51-1) -> 1083.189 | H63: =$E$15*(1+$E$16)^(H51-1) -> 1088.604945 | I63: 1094.04797 | J63: 1099.51821 | K63: 1105.015801 | L63: 1110.54088 | M63: 1116.093584 | N63: 1121.674052 | O63: 1127.282422 | P63: 1132.918834 | Q63: 1138.583428 | R63: 1144.276346 | S63: 1149.997727 | T63: 1155.747716 | U63: 1161.526455 | V63: 1167.334087 | W63: 1173.170757 | X63: 1179.036611 | Y63: 1184.931794 | Z63: 1190.856453 | AA63: 1196.810735 | AB63: 1202.794789 | AC63: 1208.808763 | AD63: 1214.852807 | AE63: 1220.927071 | AF63: 1227.031706 | AG63: 1233.166865 | AH63: 1239.332699 | AI63: 1245.529363
C64: net CF | E64: =-E59 -> -121339 | F64: =F56-F63-F62-F61 -> 1351.216345 | G64: =G56-G63-G62-G61 -> 1360.481663 | H64: =H56-H63-H62-H61 -> 1370.046075 | I64: 1379.913767 | J64: 1390.088989 | K64: 1400.57606 | L64: 1411.379368 | M64: 1422.503367 | N64: 1433.952585 | O64: 1445.731621 | P64: 1457.845144 | Q64: 1470.297898 | R64: 1483.094704 | S64: 1496.240455 | T64: 1509.740123 | U64: 1523.598757 | V64: 1537.821486 | W64: 1552.413519 | X64: 1567.380148 | Y64: 1582.726745 | Z64: 619.3872293 | AA64: 640.4055779 | AB64: 661.7960473 | AC64: 683.5644768 | AD64: 705.7167942 | AE64: 728.2590173 | AF64: 751.1972546 | AG64: 774.5377076 | AH64: 798.2866714 | AI64: 822.4505365
C65: součet CF | E65: =E64 -> -121339 | F65: =E65+F64 -> -119987.7837 | G65: -118627.302 | H65: -117257.2559 | I65: -115877.3422 | J65: -114487.2532 | K65: -113086.6771 | L65: -111675.2977 | M65: -110252.7944 | N65: -108818.8418 | O65: -107373.1102 | P65: -105915.265 | Q65: -104444.9671 | R65: -102961.8724 | S65: -101465.632 | T65: -99955.89184 | U65: -98432.29308 | V65: -96894.4716 | W65: -95342.05808 | X65: -93774.67793 | Y65: -92191.95118 | Z65: -91572.56395 | AA65: -90932.15838 | AB65: -90270.36233 | AC65: -89586.79785 | AD65: -88881.08106 | AE65: -88152.82204 | AF65: -87401.62479 | AG65: -86627.08708 | AH65: -85828.80041 | AI65: -85006.34987
C68: Zelený bonus s akumulátorem
E69: 0 | F69: 1 | G69: 2 | H69: 3 | I69: 4 | J69: 5 | K69: 6 | L69: 7 | M69: 8 | N69: 9 | O69: 10 | P69: 11 | Q69: 12 | R69: 13 | S69: 14 | T69: 15 | U69: 16 | V69: 17 | W69: 18 | X69: 19 | Y69: 20 | Z69: 21 | AA69: 22 | AB69: 23 | AC69: 24 | AD69: 25 | AE69: 26 | AF69: 27 | AG69: 28 | AH69: 29 | AI69: 30
C70: Příjmy
C71: Generováno elektrické energie | F71: =IF(F69<=$E$17,$E$11*(1-$E$12)^(F69-1),0) -> 756.8621258 | G71: =IF(G69<=$E$17,$E$11*(1-$E$12)^(G69-1),0) -> 753.0778151 | H71: 749.3124261 | I71: 745.5658639 | J71: 741.8380346 | K71: 738.1288444 | L71: 734.4382002 | M71: 730.7660092 | N71: 727.1121792 | O71: 723.4766183 | P71: 719.8592352 | Q71: 716.259939 | R71: 712.6786393 | S71: 709.1152461 | T71: 705.5696699 | U71: 702.0418215 | V71: 698.5316124 | W71: 695.0389544 | X71: 691.5637596 | Y71: 688.1059408 | Z71: 684.6654111 | AA71: 681.242084 | AB71: 677.8358736 | AC71: 674.4466942 | AD71: 671.0744608 | AE71: 667.7190885 | AF71: 664.380493 | AG71: 661.0585906 | AH71: 657.7532976 | AI71: 654.4645311
C72: Ušetřeno na výdajích | F72: =$E$19*$E$11*(1-$E$12)^(F69-1)*(1+$E$18)^(F69-1) -> 1346.703505 | G72: =$E$19*$E$11*(1-$E$12)^(G69-1)*(1+$E$18)^(G69-1) -> 1366.769387 | H72: 1387.134251 | I72: 1407.802551 | J72: 1428.778809 | K72: 1450.067613 | L72: 1471.673621 | M72: 1493.601558 | N72: 1515.856221 | O72: 1538.442479 | P72: 1561.365272 | Q72: 1584.629614 | R72: 1608.240595 | S72: 1632.20338 | T72: 1656.523211 | U72: 1681.205406 | V72: 1706.255367 | W72: 1731.678572 | X72: 1757.480583 | Y72: 1783.667043 | Z72: 1810.243682 | AA72: 1837.216313 | AB72: 1864.590836 | AC72: 1892.37324 | AD72: 1920.569601 | AE72: 1949.186088 | AF72: 1978.228961 | AG72: 2007.704572 | AH72: 2037.61937 | AI72: 2067.979899
C73: Zelený bonus | F73: =IF($E$22>=F69, $E$21*F71, 0) -> 1082.31284 | G73: =IF($E$22>=G69, $E$21*G71, 0) -> 1076.901276 | H73: 1071.516769 | I73: 1066.159185 | J73: 1060.828389 | K73: 1055.524248 | L73: 1050.246626 | M73: 1044.995393 | N73: 1039.770416 | O73: 1034.571564 | P73: 1029.398706 | Q73: 1024.251713 | R73: 1019.130454 | S73: 1014.034802 | T73: 1008.964628 | U73: 1003.919805 | V73: 998.9002058 | W73: 993.9057047 | X73: 988.9361762 | Y73: 983.9914953 | Z73: 0 | AA73: 0 | AB73: 0 | AC73: 0 | AD73: 0 | AE73: 0 | AF73: 0 | AG73: 0 | AH73: 0 | AI73: 0
C74: Celkový příjem z provozu | F74: =F72+F73 -> 2429.016345 | G74: =G72+G73 -> 2443.670663 | H74: 2458.65102 | I74: 2473.961737 | J74: 2489.607199 | K74: 2505.591861 | L74: 2521.920247 | M74: 2538.596951 | N74: 2555.626637 | O74: 2573.014043 | P74: 2590.763978 | Q74: 2608.881327 | R74: 2627.37105 | S74: 2646.238182 | T74: 2665.487839 | U74: 2685.125211 | V74: 2705.155573 | W74: 2725.584277 | X74: 2746.416759 | Y74: 2767.658539 | Z74: 1810.243682 | AA74: 1837.216313 | AB74: 1864.590836 | AC74: 1892.37324 | AD74: 1920.569601 | AE74: 1949.186088 | AF74: 1978.228961 | AG74: 2007.704572 | AH74: 2037.61937 | AI74: 2067.979899
C76: Výdaje
C77: Splaceno | E77: =($E$24+E25)*$E$26 -> 121339
C78: Půjčka | E78: =($E$24+E25)-$E$77 -> 0
C79: úmor | F79: =IF($E$28>=F69,-PPMT($E$27,F69,$E$28,$E$43),0) -> 0 | G79: =IF($E$28>=G69,-PPMT($E$27,G69,$E$28,$E$43),0) -> 0 | H79: =IF($E$28>=H69,-PPMT($E$27,H69,$E$28,$E$43),0) -> 0 | I79: 0 | J79: 0 | K79: 0 | L79: 0 | M79: 0 | N79: 0 | O79: 0 | P79: 0 | Q79: 0 | R79: 0 | S79: 0 | T79: 0 | U79: 0 | V79: 0 | W79: 0 | X79: 0 | Y79: 0 | Z79: 0 | AA79: 0 | AB79: 0 | AC79: 0 | AD79: 0 | AE79: 0 | AF79: 0 | AG79: 0 | AH79: 0 | AI79: 0
C80: úrok | F80: =IF($E$28>=F69,-PMT($E$27,$E$28,$E$43)-F79,0) -> 0 | G80: =IF($E$28>=G69,-PMT($E$27,$E$28,$E$43)-G79,0) -> 0 | H80: =IF($E$28>=H69,-PMT($E$27,$E$28,$E$43)-H79,0) -> 0 | I80: =IF($E$28>=I69,-PMT($E$27,$E$28,$E$43)-I79,0) -> 0 | J80: 0 | K80: 0 | L80: 0 | M80: 0 | N80: 0 | O80: 0 | P80: 0 | Q80: 0 | R80: 0 | S80: 0 | T80: 0 | U80: 0 | V80: 0 | W80: 0 | X80: 0 | Y80: 0 | Z80: 0 | AA80: 0 | AB80: 0 | AC80: 0 | AD80: 0 | AE80: 0 | AF80: 0 | AG80: 0 | AH80: 0 | AI80: 0
C81: variabilní náklady | F81: =$E$15*(1+$E$16)^(F69-1) -> 1077.8 | G81: =$E$15*(1+$E$16)^(G69-1) -> 1083.189 | H81: =$E$15*(1+$E$16)^(H69-1) -> 1088.604945 | I81: 1094.04797 | J81: 1099.51821 | K81: 1105.015801 | L81: 1110.54088 | M81: 1116.093584 | N81: 1121.674052 | O81: 1127.282422 | P81: 1132.918834 | Q81: 1138.583428 | R81: 1144.276346 | S81: 1149.997727 | T81: 1155.747716 | U81: 1161.526455 | V81: 1167.334087 | W81: 1173.170757 | X81: 1179.036611 | Y81: 1184.931794 | Z81: 1190.856453 | AA81: 1196.810735 | AB81: 1202.794789 | AC81: 1208.808763 | AD81: 1214.852807 | AE81: 1220.927071 | AF81: 1227.031706 | AG81: 1233.166865 | AH81: 1239.332699 | AI81: 1245.529363
C82: net CF | E82: =-E77 -> -121339 | F82: =F74-F81-F80-F79 -> 1351.216345 | G82: =G74-G81-G80-G79 -> 1360.481663 | H82: =H74-H81-H80-H79 -> 1370.046075 | I82: 1379.913767 | J82: 1390.088989 | K82: 1400.57606 | L82: 1411.379368 | M82: 1422.503367 | N82: 1433.952585 | O82: 1445.731621 | P82: 1457.845144 | Q82: 1470.297898 | R82: 1483.094704 | S82: 1496.240455 | T82: 1509.740123 | U82: 1523.598757 | V82: 1537.821486 | W82: 1552.413519 | X82: 1567.380148 | Y82: 1582.726745 | Z82: 619.3872293 | AA82: 640.4055779 | AB82: 661.7960473 | AC82: 683.5644768 | AD82: 705.7167942 | AE82: 728.2590173 | AF82: 751.1972546 | AG82: 774.5377076 | AH82: 798.2866714 | AI82: 822.4505365
C83: součet CF | E83: =E82 -> -121339 | F83: =E83+F82 -> -119987.7837 | G83: -118627.302 | H83: -117257.2559 | I83: -115877.3422 | J83: -114487.2532 | K83: -113086.6771 | L83: -111675.2977 | M83: -110252.7944 | N83: -108818.8418 | O83: -107373.1102 | P83: -105915.265 | Q83: -104444.9671 | R83: -102961.8724 | S83: -101465.632 | T83: -99955.89184 | U83: -98432.29308 | V83: -96894.4716 | W83: -95342.05808 | X83: -93774.67793 | Y83: -92191.95118 | Z83: -91572.56395 | AA83: -90932.15838 | AB83: -90270.36233 | AC83: -89586.79785 | AD83: -88881.08106 | AE83: -88152.82204 | AF83: -87401.62479 | AG83: -86627.08708 | AH83: -85828.80041 | AI83: -85006.34987

Sheet Results
A2: Výsledky
J4: výkupní cena | K4: Zel. bonus | L4: Zel. bonus + AKU
I5: NPV | J5: =CashFlow!D4 -> -111917.8741 | K5: =CashFlow!E4 -> -101352.1496 | L5: =CashFlow!F4 -> -101352.1496
C8: AP1200 | D8: AP2400 | E8: AP7 | F8: SKYSTREAM 3.7 | G8: HY-3000L 5BLADE | H8: HY-1500L 5BLADE
B10: NPV (1) Půjčka
B11: NPV (2) Půjčka
B12: NPV (3) Půjčka
B13: NPV (1) Hotovost
B14: NPV (2) Hotovost
B15: NPV (3) Hotovost
B17: průměr | C17: =AVERAGE(C10:C16) ->  | D17: =AVERAGE(D10:D16) -> 
B19: NPV > 0 od rychlosti větru | I19: varianta 2 hotovost
I20: varianta 3 hotovost

Sheet Interaktivní Analýza
A2: Finanční výpočty - Cash Flow
D3: výkupní cena | E3: Zel. bonus | F3: Zel. bonus + AKU | H3: Vybraná elektrárna
C4: NPV | D4: =NPV(E29,F47:AI47) + $E$47 -> -208423.2411 | E4: =NPV(E29,F64:AJ64) + E64 -> -139354.9927 | F4: =NPV(E29,F82:AI82) + E82 -> -154638.2734 | H4: 3
C7: Parametr | E7: Hodnota | F7: Jednotky | J7: 1 | K7: 2 | L7: 3 | M7: 4 | N7: 5 | O7: 6
C8: Jmenovitý výkon - generováno energie za rok | E8: =G8*8760*10^-3 -> 61320 | F8: kWh/rok | G8: =VlastnostMVE($E$31,'Input Sheet'!C18) -> 7000 | J8: AP1200 | K8: AP2400 | L8: AP7 | M8: SKYSTREAM 3.7 | N8: HY-3000L 5BLADE | O8: HY-1500L 5BLADE
C9: Generováno elektrické energie | E9: =E8*M28 -> 7358.4 | F9: kWh/rok
C10: Efektivita Regulatoru | E10: =IF(ISBLANK('Input Sheet'!D38), 100%, 'Input Sheet'!D38) -> 0.95 | H10: za rok | J10: ='Site SWT'!S42*2 -> 850.1172453 | K10: ='Site SWT'!T42*2 -> 1315.845504 | L10: ='Site SWT'!U42*2 -> 3007.743261 | M10: ='Site SWT'!V42*2 -> 797.4271129 | N10: ='Site SWT'!W42*2 -> 1165.021395 | O10: ='Site SWT'!X42*2 -> 654.8194311 | P10: kWh
C11: Energie celkem | E11: =E9*E10 -> 6990.48 | F11: kWh/rok | H11: Ročně do DS | J11: ='Site SWT'!AB43 + 'Site SWT'!AB75 -> 0.6548226153 | K11: ='Site SWT'!AC43 + 'Site SWT'!AC75 -> 38.99231901 | L11: ='Site SWT'!AD43 + 'Site SWT'!AD75 -> 393.3610845 | M11: ='Site SWT'!AE43 + 'Site SWT'!AE75 -> 0 | N11: ='Site SWT'!AF43 + 'Site SWT'!AF75 -> 21.49635735 | O11: ='Site SWT'!AG43 + 'Site SWT'!AG75 -> 0 | P11: kWh
C12: Každoroční opotřebení | E12: =VlastnostMVE(E31,'Input Sheet'!C25) -> 0.005 | F12: ročně | H12: Ušetřeno energie | J12: =J10-J11 -> 849.4624227 | K12: 1276.853185 | L12: 2614.382176 | M12: 797.4271129 | N12: 1143.525037 | O12: 654.8194311 | P12: kWh
C13: Ušetřeno energie ze spotřeby | E13: =E11*G13 -> 5732.1936 | F13: kWh/rok | G13: =U31 -> 0.82 | H13: Ušetřeno/generováno | J13: =J12/J10 -> 0.9992297267 | K13: 0.9703670994 | L13: 0.8692172003 | M13: 1 | N13: 0.98154853 | O13: 1
H14: Využití výkonu | J14: 0.098 | K14: 0.076 | L14: 0.06 | M14: 0.046 | N14: 0.054 | O14: 0.061
C15: Variabilní náklady | E15: =G15*M16 -> 1699.99 | F15: Kč | G15: =VlastnostMVE($E$31,'Input Sheet'!C28) -> 169999
C16: Každoroční opotřebení | E16: =VlastnostMVE(E31,'Input Sheet'!C30) -> 0.005 | F16: per year | H16: Variabilní náklady | M16: =N16/200 -> 0.01 | N16: 2 | P16: Výše půjčky | U16: =V16/100 -> 0 | V16: 0
C17: Životnost MVtE | E17: =VlastnostMVE($E$31,'Input Sheet'!C26) -> 30 | F17: let
C18: Zvyšování ceny elektřiny | E18: =M30 -> 0.01 | H18: Platba za spotřebu | M18: =N18/4 -> 2 | N18: 8 | P18: Úrok | U18: =V18/100 -> 0.11 | V18: 11
C19: Platba za spotřebu el. Energie | E19: =M18 -> 2 | F19: Kč/kWh
H20: Zelený Bonus | M20: =N20/5 -> 1.6 | N20: 8 | P20: Doba splácení | U20: 50
C21: Zelený bonus | E21: =M20 -> 1.6 | F21: Kč/kWh
C22: Doba trvání zeleného bonusu | E22: ='Input Sheet'!D61 -> 20 | F22: ročně | H22: Výkupní cena | M22: =N22/5 -> 1.8 | N22: 9
C24: Investiční náklady | E24: =G24*(1-M26) -> 327448 | F24: Kč | G24: ='Input Sheet'!F47 -> 327448 | H24: Cena akumulátoru | M24: =N24*10^3 -> 40000 | N24: 40
C25: Cena akumulatoru + usměrňovače | E25: =M24 -> 40000 | F25: Kč
C26: Splaceno při uvedení do provozu | E26: =1-U16 -> 1 | H26: Míra dotace z invest. nákladů | M26: =N26/10 -> 0 | N26: 0
C27: Úrok | E27: =U18 -> 0.11 | F27: ročně
C28: Doba Splacení závazku | E28: =U20 -> 50 | F28: let | H28: Generováno % z jmen. Výkonu | M28: =N28/100 -> 0.12 | N28: 12
C29: Diskont | E29: =M32 -> 0.1
C30: Výkupní cena | E30: =M22 -> 1.8 | F30: Kč/kWh | H30: Zvyšování ceny elektřiny | M30: =N30/100 -> 0.01 | N30: 1
C31: Vybraná elektrárna | E31: =H4 -> 3 | P31: Ušetřeno energie ze spotřeby | U31: =V31/100 -> 0.82 | V31: 82
H32: Diskont | M32: =N32/100 -> 0.1 | N32: 10
C33: Výkupní cena
E34: 0 | F34: 1 | G34: 2 | H34: 3 | I34: 4 | J34: 5 | K34: 6 | L34: 7 | M34: 8 | N34: 9 | O34: 10 | P34: 11 | Q34: 12 | R34: 13 | S34: 14 | T34: 15 | U34: 16 | V34: 17 | W34: 18 | X34: 19 | Y34: 20 | Z34: 21 | AA34: 22 | AB34: 23 | AC34: 24 | AD34: 25 | AE34: 26 | AF34: 27 | AG34: 28 | AH34: 29 | AI34: 30
C35: Příjmy
C36: Generováno elektrické energie | F36: =IF(F34<=$E$17,$E$9*(1-$E$12)^(F34-1),0) -> 7358.4 | G36: =IF(G34<=$E$17,$E$9*(1-$E$12)^(G34-1),0) -> 7321.608 | H36: 7284.99996 | I36: 7248.57496 | J36: 7212.332085 | K36: 7176.270425 | L36: 7140.389073 | M36: 7104.687127 | N36: 7069.163692 | O36: 7033.817873 | P36: 6998.648784 | Q36: 6963.65554 | R36: 6928.837262 | S36: 6894.193076 | T36: 6859.722111 | U36: 6825.4235 | V36: 6791.296383 | W36: 6757.339901 | X36: 6723.553201 | Y36: 6689.935435 | Z36: 6656.485758 | AA36: 6623.203329 | AB36: 6590.087313 | AC36: 6557.136876 | AD36: 6524.351192 | AE36: 6491.729436 | AF36: 6459.270789 | AG36: 6426.974435 | AH36: 6394.839562 | AI36: 6362.865365
C37: Ušetřeno na výdajích | F37: 0 | G37: 0 | H37: 0 | I37: 0 | J37: 0 | K37: 0 | L37: 0 | M37: 0 | N37: 0 | O37: 0 | P37: 0 | Q37: 0 | R37: 0 | S37: 0 | T37: 0 | U37: 0 | V37: 0 | W37: 0 | X37: 0 | Y37: 0 | Z37: =$E$19*$E$13*(1-$E$12)^(Z34-1)*(1+$E$18)^(Z34-1)*$E$10 -> 12021.6351 | AA37: =$E$19*$E$13*(1-$E$12)^(AA34-1)*(1+$E$18)^(AA34-1)*$E$10 -> 12081.14219 | AB37: 12140.94385 | AC37: 12201.04152 | AD37: 12261.43668 | AE37: 12322.13079 | AF37: 12383.12533 | AG37: 12444.4218 | AH37: 12506.02169 | AI37: 12567.9265
C38: Výkupní cena | F38: =IF($E$22>=F34, $E$30*F36*1.02^(F34-1), 0) -> 13245.12 | G38: =IF($E$22>=G34, $E$30*G36*1.02^(G34-1), 0) -> 13442.47229 | H38: =IF($E$22>=H34, $E$30*H36*1.02^(H34-1), 0) -> 13642.76513 | I38: 13846.04233 | J38: 14052.34836 | K38: 14261.72835 | L38: 14474.2281 | M38: 14689.8941 | N38: 14908.77352 | O38: 15130.91425 | P38: 15356.36487 | Q38: 15585.1747 | R38: 15817.39381 | S38: 16053.07297 | T38: 16292.26376 | U38: 16535.01849 | V38: 16781.39027 | W38: 17031.43298 | X38: 17285.20133 | Y38: 17542.75083 | Z38: =IF($E$22>=Z34, $E$21*Z36, 0) -> 0 | AA38: 0 | AB38: 0 | AC38: 0 | AD38: 0 | AE38: 0 | AF38: 0 | AG38: 0 | AH38: 0 | AI38: 0
C39: Celkový příjem z provozu | F39: =F37+F38 -> 13245.12 | G39: =G37+G38 -> 13442.47229 | H39: 13642.76513 | I39: 13846.04233 | J39: 14052.34836 | K39: 14261.72835 | L39: 14474.2281 | M39: 14689.8941 | N39: 14908.77352 | O39: 15130.91425 | P39: 15356.36487 | Q39: 15585.1747 | R39: 15817.39381 | S39: 16053.07297 | T39: 16292.26376 | U39: 16535.01849 | V39: 16781.39027 | W39: 17031.43298 | X39: 17285.20133 | Y39: 17542.75083 | Z39: 12021.6351 | AA39: 12081.14219 | AB39: 12140.94385 | AC39: 12201.04152 | AD39: 12261.43668 | AE39: 12322.13079 | AF39: 12383.12533 | AG39: 12444.4218 | AH39: 12506.02169 | AI39: 12567.9265
C41: Výdaje
C42: Splaceno | E42: =$E$24*$E$26 -> 327448
C43: Půjčka | E43: =$E$24-$E$42 -> 0
C44: úmor | F44: =IF($E$28>=F34,-PPMT($E$27,F34,$E$28,$E$43),0) -> 0 | G44: =IF($E$28>=G34,-PPMT($E$27,G34,$E$28,$E$43),0) -> 0 | H44: =IF($E$28>=H34,-PPMT($E$27,H34,$E$28,$E$43),0) -> 0 | I44: 0 | J44: 0 | K44: 0 | L44: 0 | M44: 0 | N44: 0 | O44: 0 | P44: 0 | Q44: 0 | R44: 0 | S44: 0 | T44: 0 | U44: 0 | V44: 0 | W44: 0 | X44: 0 | Y44: 0 | Z44: 0 | AA44: 0 | AB44: 0 | AC44: 0 | AD44: 0 | AE44: 0 | AF44: 0 | AG44: 0 | AH44: 0 | AI44: 0
C45: úrok | F45: =IF($E$28>=F34,-PMT($E$27,$E$28,$E$43)-F44,0) -> 0 | G45: =IF($E$28>=G34,-PMT($E$27,$E$28,$E$43)-G44,0) -> 0 | H45: =IF($E$28>=H34,-PMT($E$27,$E$28,$E$43)-H44,0) -> 0 | I45: =IF($E$28>=I34,-PMT($E$27,$E$28,$E$43)-I44,0) -> 0 | J45: 0 | K45: 0 | L45: 0 | M45: 0 | N45: 0 | O45: 0 | P45: 0 | Q45: 0 | R45: 0 | S45: 0 | T45: 0 | U45: 0 | V45: 0 | W45: 0 | X45: 0 | Y45: 0 | Z45: 0 | AA45: 0 | AB45: 0 | AC45: 0 | AD45: 0 | AE45: 0 | AF45: 0 | AG45: 0 | AH45: 0 | AI45: 0
C46: variabilní náklady | F46: =$E$15*(1+$E$16)^(F34-1) -> 1699.99 | G46: =$E$15*(1+$E$16)^(G34-1) -> 1708.48995 | H46: =$E$15*(1+$E$16)^(H34-1) -> 1717.0324 | I46: 1725.617562 | J46: 1734.24565 | K46: 1742.916878 | L46: 1751.631462 | M46: 1760.38962 | N46: 1769.191568 | O46: 1778.037525 | P46: 1786.927713 | Q46: 1795.862352 | R46: 1804.841663 | S46: 1813.865872 | T46: 1822.935201 | U46: 1832.049877 | V46: 1841.210126 | W46: 1850.416177 | X46: 1859.668258 | Y46: 1868.966599 | Z46: 1878.311432 | AA46: 1887.702989 | AB46: 1897.141504 | AC46: 1906.627212 | AD46: 1916.160348 | AE46: 1925.74115 | AF46: 1935.369855 | AG46: 1945.046705 | AH46: 1954.771938 | AI46: 1964.545798
C47: net CF | E47: =-E42 -> -327448 | F47: =F39-F46-F45-F44 -> 11545.13 | G47: =G39-G46-G45-G44 -> 11733.98234 | H47: =H39-H46-H45-H44 -> 11925.73273 | I47: 12120.42476 | J47: 12318.10271 | K47: 12518.81147 | L47: 12722.59664 | M47: 12929.50448 | N47: 13139.58195 | O47: 13352.87672 | P47: 13569.43715 | Q47: 13789.31235 | R47: 14012.55214 | S47: 14239.2071 | T47: 14469.32856 | U47: 14702.96862 | V47: 14940.18014 | W47: 15181.01681 | X47: 15425.53308 | Y47: 15673.78423 | Z47: 10143.32367 | AA47: 10193.4392 | AB47: 10243.80234 | AC47: 10294.41431 | AD47: 10345.27633 | AE47: 10396.38964 | AF47: 10447.75548 | AG47: 10499.3751 | AH47: 10551.24975 | AI47: 10603.3807
C48: součet CF | E48: =E47 -> -327448 | F48: =E48+F47 -> -315902.87 | G48: -304168.8877 | H48: -292243.1549 | I48: -280122.7302 | J48: -267804.6275 | K48: -255285.816 | L48: -242563.2194 | M48: -229633.7149 | N48: -216494.1329 | O48: -203141.2562 | P48: -189571.8191 | Q48: -175782.5067 | R48: -161769.9546 | S48: -147530.7475 | T48: -133061.4189 | U48: -118358.4503 | V48: -103418.2701 | W48: -88237.25333 | X48: -72811.72026 | Y48: -57137.93602 | Z48: -46994.61236 | AA48: -36801.17315 | AB48: -26557.37081 | AC48: -16262.9565 | AD48: -5917.680175 | AE48: 4478.709462 | AF48: 14926.46494 | AG48: 25425.84004 | AH48: 35977.08979 | AI48: 46580.4705
C50: Zelený bonus
E51: 0 | F51: 1 | G51: 2 | H51: 3 | I51: 4 | J51: 5 | K51: 6 | L51: 7 | M51: 8 | N51: 9 | O51: 10 | P51: 11 | Q51: 12 | R51: 13 | S51: 14 | T51: 15 | U51: 16 | V51: 17 | W51: 18 | X51: 19 | Y51: 20 | Z51: 21 | AA51: 22 | AB51: 23 | AC51: 24 | AD51: 25 | AE51: 26 | AF51: 27 | AG51: 28 | AH51: 29 | AI51: 30
C52: Příjmy
C53: Generováno elektrické energie | F53: =IF(F51<=$E$17,$E$11*(1-$E$12)^(F51-1),0) -> 6990.48 | G53: =IF(G51<=$E$17,$E$11*(1-$E$12)^(G51-1),0) -> 6955.5276 | H53: 6920.749962 | I53: 6886.146212 | J53: 6851.715481 | K53: 6817.456904 | L53: 6783.369619 | M53: 6749.452771 | N53: 6715.705507 | O53: 6682.12698 | P53: 6648.716345 | Q53: 6615.472763 | R53: 6582.395399 | S53: 6549.483422 | T53: 6516.736005 | U53: 6484.152325 | V53: 6451.731564 | W53: 6419.472906 | X53: 6387.375541 | Y53: 6355.438663 | Z53: 6323.66147 | AA53: 6292.043163 | AB53: 6260.582947 | AC53: 6229.280032 | AD53: 6198.133632 | AE53: 6167.142964 | AF53: 6136.307249 | AG53: 6105.625713 | AH53: 6075.097584 | AI53: 6044.722096
C54: Ušetřeno na výdajích | F54: =$E$19*$E$13*(1-$E$12)^(F51-1)*(1+$E$18)^(F51-1) -> 11464.3872 | G54: =$E$19*$E$13*(1-$E$12)^(G51-1)*(1+$E$18)^(G51-1) -> 11521.13592 | H54: 11578.16554 | I54: 11635.47746 | J54: 11693.07307 | K54: 11750.95378 | L54: 11809.12101 | M54: 11867.57615 | N54: 11926.32066 | O54: 11985.35594 | P54: 12044.68346 | Q54: 12104.30464 | R54: 12164.22095 | S54: 12224.43384 | T54: 12284.94479 | U54: 12345.75526 | V54: 12406.86675 | W54: 12468.28074 | X54: 12529.99873 | Y54: 12592.02223 | Z54: 12654.35274 | AA54: 12716.99178 | AB54: 12779.94089 | AC54: 12843.2016 | AD54: 12906.77545 | AE54: 12970.66399 | AF54: 13034.86877 | AG54: 13099.39137 | AH54: 13164.23336 | AI54: 13229.39632
C55: Zelený bonus | F55: =IF($E$22>=F51, $E$21*F53, 0) -> 11184.768 | G55: =IF($E$22>=G51, $E$21*G53, 0) -> 11128.84416 | H55: 11073.19994 | I55: 11017.83394 | J55: 10962.74477 | K55: 10907.93105 | L55: 10853.39139 | M55: 10799.12443 | N55: 10745.12881 | O55: 10691.40317 | P55: 10637.94615 | Q55: 10584.75642 | R55: 10531.83264 | S55: 10479.17348 | T55: 10426.77761 | U55: 10374.64372 | V55: 10322.7705 | W55: 10271.15665 | X55: 10219.80087 | Y55: 10168.70186 | Z55: 0 | AA55: 0 | AB55: 0 | AC55: 0 | AD55: 0 | AE55: 0 | AF55: 0 | AG55: 0 | AH55: 0 | AI55: 0
C56: Celkový příjem z provozu | F56: =F54+F55 -> 22649.1552 | G56: =G54+G55 -> 22649.98008 | H56: 22651.36548 | I56: 22653.3114 | J56: 22655.81784 | K56: 22658.88483 | L56: 22662.5124 | M56: 22666.70059 | N56: 22671.44947 | O56: 22676.75911 | P56: 22682.62961 | Q56: 22689.06106 | R56: 22696.05359 | S56: 22703.60732 | T56: 22711.7224 | U56: 22720.39898 | V56: 22729.63725 | W56: 22739.43739 | X56: 22749.7996 | Y56: 22760.72409 | Z56: 12654.35274 | AA56: 12716.99178 | AB56: 12779.94089 | AC56: 12843.2016 | AD56: 12906.77545 | AE56: 12970.66399 | AF56: 13034.86877 | AG56: 13099.39137 | AH56: 13164.23336 | AI56: 13229.39632
C58: Výdaje
C59: Splaceno | E59: =$E$24*$E$26 -> 327448
C60: Půjčka | E60: =$E$24-$E$59 -> 0
C61: úmor | F61: =IF($E$28>=F51,-PPMT($E$27,F51,$E$28,$E$60),0) -> 0 | G61: =IF($E$28>=G51,-PPMT($E$27,G51,$E$28,$E$60),0) -> 0 | H61: 0 | I61: 0 | J61: 0 | K61: 0 | L61: 0 | M61: 0 | N61: 0 | O61: 0 | P61: 0 | Q61: 0 | R61: 0 | S61: 0 | T61: 0 | U61: 0 | V61: 0 | W61: 0 | X61: 0 | Y61: 0 | Z61: 0 | AA61: 0 | AB61: 0 | AC61: 0 | AD61: 0 | AE61: 0 | AF61: 0 | AG61: 0 | AH61: 0 | AI61: 0
C62: úrok | F62: =IF($E$28>=F51,-PMT($E$27,$E$28,$E$60)-F61,0) -> 0 | G62: =IF($E$28>=G51,-PMT($E$27,$E$28,$E$60)-G61,0) -> 0 | H62: 0 | I62: 0 | J62: 0 | K62: 0 | L62: 0 | M62: 0 | N62: 0 | O62: 0 | P62: 0 | Q62: 0 | R62: 0 | S62: 0 | T62: 0 | U62: 0 | V62: 0 | W62: 0 | X62: 0 | Y62: 0 | Z62: 0 | AA62: 0 | AB62: 0 | AC62: 0 | AD62: 0 | AE62: 0 | AF62: 0 | AG62: 0 | AH62: 0 | AI62: 0
C63: variabilní náklady | F63: =$E$15*(1+$E$16)^(F51-1) -> 1699.99 | G63: =$E$15*(1+$E$16)^(G51-1) -> 1708.48995 | H63: =$E$15*(1+$E$16)^(H51-1) -> 1717.0324 | I63: 1725.617562 | J63: 1734.24565 | K63: 1742.916878 | L63: 1751.631462 | M63: 1760.38962 | N63: 1769.191568 | O63: 1778.037525 | P63: 1786.927713 | Q63: 1795.862352 | R63: 1804.841663 | S63: 1813.865872 | T63: 1822.935201 | U63: 1832.049877 | V63: 1841.210126 | W63: 1850.416177 | X63: 1859.668258 | Y63: 1868.966599 | Z63: 1878.311432 | AA63: 1887.702989 | AB63: 1897.141504 | AC63: 1906.627212 | AD63: 1916.160348 | AE63: 1925.74115 | AF63: 1935.369855 | AG63: 1945.046705 | AH63: 1954.771938 | AI63: 1964.545798
C64: net CF | E64: =-E59 -> -327448 | F64: =F56-F63-F62-F61 -> 20949.1652 | G64: =G56-G63-G62-G61 -> 20941.49013 | H64: =H56-H63-H62-H61 -> 20934.33308 | I64: 20927.69384 | J64: 20921.57219 | K64: 20915.96795 | L64: 20910.88093 | M64: 20906.31097 | N64: 20902.2579 | O64: 20898.72159 | P64: 20895.70189 | Q64: 20893.19871 | R64: 20891.21192 | S64: 20889.74144 | T64: 20888.78719 | U64: 20888.34911 | V64: 20888.42713 | W64: 20889.02122 | X64: 20890.13134 | Y64: 20891.75749 | Z64: 10776.0413 | AA64: 10829.28879 | AB64: 10882.79939 | AC64: 10936.57439 | AD64: 10990.6151 | AE64: 11044.92284 | AF64: 11099.49892 | AG64: 11154.34467 | AH64: 11209.46142 | AI64: 11264.85052
C65: součet CF | E65: =E64 -> -327448 | F65: =E65+F64 -> -306498.8348 | G65: -285557.3447 | H65: -264623.0116 | I65: -243695.3178 | J65: -222773.7456 | K65: -201857.7776 | L65: -180946.8967 | M65: -160040.5857 | N65: -139138.3278 | O65: -118239.6062 | P65: -97343.90433 | Q65: -76450.70562 | R65: -55559.4937 | S65: -34669.75226 | T65: -13780.96506 | U65: 7107.384044 | V65: 27995.81117 | W65: 48884.83239 | X65: 69774.96373 | Y65: 90666.72122 | Z65: 101442.7625 | AA65: 112272.0513 | AB65: 123154.8507 | AC65: 134091.4251 | AD65: 145082.0402 | AE65: 156126.963 | AF65: 167226.4619 | AG65: 178380.8066 | AH65: 189590.268 | AI65: 200855.1186
C68: Zelený bonus s akumulátorem
E69: 0 | F69: 1 | G69: 2 | H69: 3 | I69: 4 | J69: 5 | K69: 6 | L69: 7 | M69: 8 | N69: 9 | O69: 10 | P69: 11 | Q69: 12 | R69: 13 | S69: 14 | T69: 15 | U69: 16 | V69: 17 | W69: 18 | X69: 19 | Y69: 20 | Z69: 21 | AA69: 22 | AB69: 23 | AC69: 24 | AD69: 25 | AE69: 26 | AF69: 27 | AG69: 28 | AH69: 29 | AI69: 30
C70: Příjmy
C71: Generováno elektrické energie | F71: =IF(F69<=$E$17,$E$11*(1-$E$12)^(F69-1),0) -> 6990.48 | G71: =IF(G69<=$E$17,$E$11*(1-$E$12)^(G69-1),0) -> 6955.5276 | H71: 6920.749962 | I71: 6886.146212 | J71: 6851.715481 | K71: 6817.456904 | L71: 6783.369619 | M71: 6749.452771 | N71: 6715.705507 | O71: 6682.12698 | P71: 6648.716345 | Q71: 6615.472763 | R71: 6582.395399 | S71: 6549.483422 | T71: 6516.736005 | U71: 6484.152325 | V71: 6451.731564 | W71: 6419.472906 | X71: 6387.375541 | Y71: 6355.438663 | Z71: 6323.66147 | AA71: 6292.043163 | AB71: 6260.582947 | AC71: 6229.280032 | AD71: 6198.133632 | AE71: 6167.142964 | AF71: 6136.307249 | AG71: 6105.625713 | AH71: 6075.097584 | AI71: 6044.722096
C72: Ušetřeno na výdajích | F72: =$E$19*$E$11*(1-$E$12)^(F69-1)*(1+$E$18)^(F69-1) -> 13980.96 | G72: =$E$19*$E$11*(1-$E$12)^(G69-1)*(1+$E$18)^(G69-1) -> 14050.16575 | H72: 14119.71407 | I72: 14189.60666 | J72: 14259.84521 | K72: 14330.43144 | L72: 14401.36708 | M72: 14472.65385 | N72: 14544.29348 | O72: 14616.28774 | P72: 14688.63836 | Q72: 14761.34712 | R72: 14834.41579 | S72: 14907.84615 | T72: 14981.63998 | U72: 15055.7991 | V72: 15130.32531 | W72: 15205.22042 | X72: 15280.48626 | Y72: 15356.12467 | Z72: 15432.13748 | AA72: 15508.52656 | AB72: 15585.29377 | AC72: 15662.44097 | AD72: 15739.97006 | AE72: 15817.88291 | AF72: 15896.18143 | AG72: 15974.86753 | AH72: 16053.94312 | AI72: 16133.41014
C73: Zelený bonus | F73: =IF($E$22>=F69, $E$21*F71, 0) -> 11184.768 | G73: =IF($E$22>=G69, $E$21*G71, 0) -> 11128.84416 | H73: 11073.19994 | I73: 11017.83394 | J73: 10962.74477 | K73: 10907.93105 | L73: 10853.39139 | M73: 10799.12443 | N73: 10745.12881 | O73: 10691.40317 | P73: 10637.94615 | Q73: 10584.75642 | R73: 10531.83264 | S73: 10479.17348 | T73: 10426.77761 | U73: 10374.64372 | V73: 10322.7705 | W73: 10271.15665 | X73: 10219.80087 | Y73: 10168.70186 | Z73: 0 | AA73: 0 | AB73: 0 | AC73: 0 | AD73: 0 | AE73: 0 | AF73: 0 | AG73: 0 | AH73: 0 | AI73: 0
C74: Celkový příjem z provozu | F74: =F72+F73 -> 25165.728 | G74: =G72+G73 -> 25179.00991 | H74: 25192.91401 | I74: 25207.4406 | J74: 25222.58998 | K74: 25238.36249 | L74: 25254.75847 | M74: 25271.77828 | N74: 25289.42229 | O74: 25307.6909 | P74: 25326.58451 | Q74: 25346.10354 | R74: 25366.24843 | S74: 25387.01962 | T74: 25408.41759 | U74: 25430.44282 | V74: 25453.09581 | W74: 25476.37707 | X74: 25500.28713 | Y74: 25524.82653 | Z74: 15432.13748 | AA74: 15508.52656 | AB74: 15585.29377 | AC74: 15662.44097 | AD74: 15739.97006 | AE74: 15817.88291 | AF74: 15896.18143 | AG74: 15974.86753 | AH74: 16053.94312 | AI74: 16133.41014
C76: Výdaje
C77: Splaceno | E77: =($E$24+E25)*$E$26 -> 367448
C78: Půjčka | E78: =($E$24+E25)-$E$77 -> 0
C79: úmor | F79: =IF($E$28>=F69,-PPMT($E$27,F69,$E$28,$E$78),0) -> 0 | G79: =IF($E$28>=G69,-PPMT($E$27,G69,$E$28,$E$78),0) -> 0 | H79: 0 | I79: 0 | J79: 0 | K79: 0 | L79: 0 | M79: 0 | N79: 0 | O79: 0 | P79: 0 | Q79: 0 | R79: 0 | S79: 0 | T79: 0 | U79: 0 | V79: 0 | W79: 0 | X79: 0 | Y79: 0 | Z79: 0 | AA79: 0 | AB79: 0 | AC79: 0 | AD79: 0 | AE79: 0 | AF79: 0 | AG79: 0 | AH79: 0 | AI79: 0
C80: úrok | F80: =IF($E$28>=F69,-PMT($E$27,$E$28,$E$78)-F79,0) -> 0 | G80: =IF($E$28>=G69,-PMT($E$27,$E$28,$E$78)-G79,0) -> 0 | H80: 0 | I80: 0 | J80: 0 | K80: 0 | L80: 0 | M80: 0 | N80: 0 | O80: 0 | P80: 0 | Q80: 0 | R80: 0 | S80: 0 | T80: 0 | U80: 0 | V80: 0 | W80: 0 | X80: 0 | Y80: 0 | Z80: 0 | AA80: 0 | AB80: 0 | AC80: 0 | AD80: 0 | AE80: 0 | AF80: 0 | AG80: 0 | AH80: 0 | AI80: 0
C81: variabilní náklady | F81: =$E$15*(1+$E$16)^(F69-1) -> 1699.99 | G81: =$E$15*(1+$E$16)^(G69-1) -> 1708.48995 | H81: =$E$15*(1+$E$16)^(H69-1) -> 1717.0324 | I81: 1725.617562 | J81: 1734.24565 | K81: 1742.916878 | L81: 1751.631462 | M81: 1760.38962 | N81: 1769.191568 | O81: 1778.037525 | P81: 1786.927713 | Q81: 1795.862352 | R81: 1804.841663 | S81: 1813.865872 | T81: 1822.935201 | U81: 1832.049877 | V81: 1841.210126 | W81: 1850.416177 | X81: 1859.668258 | Y81: 1868.966599 | Z81: 1878.311432 | AA81: 1887.702989 | AB81: 1897.141504 | AC81: 1906.627212 | AD81: 1916.160348 | AE81: 1925.74115 | AF81: 1935.369855 | AG81: 1945.046705 | AH81: 1954.771938 | AI81: 1964.545798
C82: net CF | E82: =-E77 -> -367448 | F82: =F74-F81-F80-F79 -> 23465.738 | G82: =G74-G81-G80-G79 -> 23470.51996 | H82: =H74-H81-H80-H79 -> 23475.88161 | I82: 23481.82303 | J82: 23488.34433 | K82: 23495.44561 | L82: 23503.12701 | M82: 23511.38866 | N82: 23520.23073 | O82: 23529.65338 | P82: 23539.6568 | Q82: 23550.24119 | R82: 23561.40676 | S82: 23573.15375 | T82: 23585.48239 | U82: 23598.39295 | V82: 23611.88568 | W82: 23625.96089 | X82: 23640.61887 | Y82: 23655.85993 | Z82: 13553.82605 | AA82: 13620.82357 | AB82: 13688.15227 | AC82: 13755.81376 | AD82: 13823.80971 | AE82: 13892.14176 | AF82: 13960.81157 | AG82: 14029.82082 | AH82: 14099.17118 | AI82: 14168.86434
C83: součet CF | E83: =E82 -> -367448 | F83: =E83+F82 -> -343982.262 | G83: -320511.742 | H83: -297035.8604 | I83: -273554.0374 | J83: -250065.6931 | K83: -226570.2474 | L83: -203067.1204 | M83: -179555.7318 | N83: -156035.5011 | O83: -132505.8477 | P83: -108966.1909 | Q83: -85415.94969 | R83: -61854.54292 | S83: -38281.38917 | T83: -14695.90678 | U83: 8902.486165 | V83: 32514.37185 | W83: 56140.33274 | X83: 79780.95161 | Y83: 103436.8115 | Z83: 116990.6376 | AA83: 130611.4612 | AB83: 144299.6134 | AC83: 158055.4272 | AD83: 171879.2369 | AE83: 185771.3787 | AF83: 199732.1902 | AG83: 213762.0111 | AH83: 227861.1822 | AI83: 242030.0466

Sheet SensitivityAnalysis
A2: Citlivostní analýza výsledků NPV
B9: Vybraná elektrárna: | C9: =VlastnostMVE('Input Sheet'!C16,'Input Sheet'!C16) -> HY-1500L 5BLADE | E9: Způsob financování: | G9: =ChooseFinancing('Input Sheet'!C52,'Input Sheet'!C51) -> Hotovost
B11: Diskont | C11: 0 | D11: 0.02 | E11: 0.04 | F11: 0.06 | G11: 0.07 | H11: 0.08 | I11: 0.09 | J11: 0.1 | K11: 0.11 | L11: 0.12
B12: NPV Výkupní cena
B13: NPV Zelený bonus
B14: NPV Zelený bonus s baterií
B16: Státní dotace z investice | C16: 0.1 | D16: 0.2 | E16: 0.3 | F16: 0.4 | G16: 0.5 | H16: 0.6 | I16: 0.7 | J16: 0.8 | K16: 0.9 | L16: 1
B17: NPV Výkupní cena
B18: NPV Zelený bonus
B19: NPV Zelený bonus s baterií
B21: Zelený Bonus [Kč] | C21: 1 | D21: 1.2 | E21: 1.4 | F21: 1.6 | G21: 1.8 | H21: 2 | I21: 2.2 | J21: 2.4 | K21: 2.6 | L21: 2.8
B22: NPV Výkupní cena
B23: NPV Zelený bonus
B24: NPV Zelený bonus s baterií
B26: Roční růst ceny elektřiny | C26: -0.01 | D26: -0.005 | E26: 0 | F26: 0.005 | G26: 0.01 | H26: 0.015 | I26: 0.02 | J26: 0.025 | K26: 0.03 | L26: 0.035
B27: NPV Výkupní cena
B28: NPV Zelený bonus
B29: NPV Zelený bonus s baterií
B31: Platba za spotřebu energie [Kč/kWh] | C31: 0.5 | D31: 1 | E31: 1.5 | F31: 2 | G31: 2.5 | H31: 3 | I31: 3.5 | J31: 4 | K31: 4.5 | L31: 5
B32: NPV Výkupní cena
B33: NPV Zelený bonus
B34: NPV Zelený bonus s baterií
B36: Průměrná rychlost větru [m/s] | C36: 2 | D36: 4 | E36: 6 | F36: 8 | G36: 10 | H36: 12 | I36: 14 | J36: 16 | K36: 18 | L36: 20
B37: NPV Výkupní cena
B38: NPV Zelený bonus
B39: NPV Zelený bonus s baterií
